{"text_format":"2","workbook":"xlsx","n_sheets":16,"sheets":["KITÖLTÉSI ÚTMUTATÓ","Alátámasztó dokumentumok","(KNY)könyvvizsgálói nyilatkozat","(54-56) személyi+járulék","(51) anyagköltség ","(52) igénybe vett szolg","(53) egyéb szolgáltatások","(11) immat jav beszerz","(13) műszaki berendezések","(14) egyéb berendezések","(16) beruházás,felújítás","tám. típus összesítő","(LNY) lemondó nyilatkozat","támogatás típusai","Támogatás típusa","Munka1"],"not_rendered":{"charts":0,"images":0,"macros":0,"external_links":0,"defined_names":19,"comments":0,"pivot_tables":0},"unopened":[],"bounds":{"document_bytes":16777216,"sheet_cells":100000,"run_cost":"one","rows_first":2000,"rows_last":500,"rows_between":2000,"halvings":0,"cell_chars":16384,"cell_head_chars":4096},"cells_cut":0,"cells_raw":0,"read":"whole","date_system":"1900"}

{"sheet":"KITÖLTÉSI ÚTMUTATÓ","index":0,"n_rows":40,"n_cols":2,"rows_kept":40,"cut":false,"hidden":false,"merged":[[10,0,10,1],[24,0,24,1],[0,0,0,1],[4,0,4,1],[5,0,5,1],[6,0,6,1],[8,0,8,1],[2,0,2,1],[7,0,7,1],[1,0,1,1],[3,0,3,1]]}
["ÁLTALÁNOS KITÖLTÉSI INFORMÁCIÓK"]
["Az elszámolási összesítőben olyan, a megvalósítási időszakban felmerült gazdasági események költségeit lehet elszámolni, amelyek pénzügyi teljesítése (igazolt kifizetése) legkésőbb az elszámolási időszak végét követő 30 napig megtörtént."]
["Előleg számla minden esetben kizárólag rész/végszámlával együtt nyújtható be. Amennyiben adott mérföldkő időszakában az előleghez kapcsolódó rész/végszámla nem került kiállításra és kifizetésre, az előleg számla is csak a következő mérföldkőben számolható el."]
["Abban az esetben, ha az összesítőben szereplő költségek nem kizárólag a projekt által támogatott tevékenységgel kapcsolatban merültek fel, az elszámolni kívánt költségeket arányosan csökkenteni kell."]
["Az excel táblázatban jogcímként kitöltött fülek összesen összege és a könyvvizsgálói nyilatkozat fülre átemelt összegek közötti egyezőséget ellenőrizni szükséges."]
["Az excel táblázatban szereplő költségeknek összhangban kell lennie az EPTK felületen rögzített elszámolandó költségekkel."]
["Konzorcium esetén valamennyi konzorciumi tagnak külön-külön pénzügyi beszámoló formanyomtatványt szükséges kitölteni."]
["ÁHT-n belüli kedvezményezettek esetén nem szükséges a könyvvizsgáló általi hitelesítés, ott elegendő a gazdasági vezető (kancellár) által aláírt könyvvizsgálói nyilatkozat. ÁHT-n kívüli kedvezményezettek esetén a benyújtott elszámolás könyvvizsgáló általi hitelesítése kötelező, azonban a hiánypótlás során már nem szükséges újra hitelesíttetni az elszámolást, ott elegendő a cég részéről (gazdasági vezető és/vagy ügyvezető által) aláírt formanyomtatvány."]
["Amennyiben az EPTK felületen rögzített bizonylatok, valamint a pénzügyi beszámoló formanyomtatványon szereplő összegek megbontása (támogatás, saját forrás) között kerekítés miatti eltérés (a rendszer 6 tizedes jegy kerekítéssel dolgozik) adódik, minden esetben az EPTK felületen szereplő értékek az irányadóak."]
[]
["SZEMÉLYI JELLEGŰ KÖLTSÉGEK ÉS JÁRULÉKOK TÁBLÁZAT KITÖLTÉSÉHEZ"]
["Projektben résztvevő dolgozó neve","A projektben résztvevő munkavállalók, megbízott személyek neve egyesével feltüntetve."]
["Projektben résztvevő dolgozó státusza","Legördülő menüből szükséges választani."]
["Elszámolási időszak kezdete és vége","Azt az időszakot szükséges feltüntetni, amelyre a munkabért kifizeti (pl. 5. havi járandóság: 5. hó, vagy 2018.05.01-2018.05.31), amennyiben megbízási szerződésről van szó, ott annak teljesítésének idejét kell feltüntetni. "]
["Az adott hónapban a projektre elszámolt munka-órák száma*","Az adott időszakban munkaidő kimutatásokkal alátámasztottan a projektre elszámolt munkaórák száma. A teljes havi ledolgozható munkaóra valamint a projektre elszámolt munkaóra aránya mutatja meg, hogy a projektben részt vevő munkavállaló személyi költsége hány %-ban terhelhető a támogatott projektre. \n* Amennyiben a pályázati felhívás/útmutató megengedi a szabadság, betegszabadság, ünnepnap elszámolását a projekt terhére, úgy szíveskedjenek a feltüntetett munkaórákba beleszámítani ezek idejét is!"]
["Pénzügyi teljesítés időpontja","Az adott időszakra vonatkozó nettó bér kifizetésének dátumát szükséges feltüntetni. "]
["Állandó dolgozó (Á), vagy megbízásos dolgozó (M)  (legördülő menü)","Legördülő menüből szükséges választani."]
["Projektre elszámolt bruttó bér (Ft)","A munkavállalónak adott időszakban bérszámfejtett, projekt keretében elszámolni kívánt bruttó bért (illetményt) vagy a megbízási szerződésben szereplő bruttó összeget."]
["Projektre elszámolt egyéb juttatások (Ft) (pld. napidíj, stb.)","A munkavállalónak biztosított, projekt keretében elszámolni kívánt egyéb személyi jellegű juttatások összegét. Pl.: hideg/meleg étkezési utalvány, ruha pénz, munkába járás stb. (hatályos közszolgálati szabályzat, belső szabályzat alapján minden munkavállaló részére biztosított egyéb személyi jellegű juttatások)."]
["Projektre elszámolt bruttó bér és juttatások összesen (Ft)","Megegyezik az előző oszlopok összegével, azaz a bruttó bér és egyéb juttatások összegével."]
["Projektre elszámolt bruttó bér járuléka (Ft)","Adja meg a projektben elszámolni kívánt bruttó bérre / megbízási díjra eső járulékok összegét a hatályos jogszabályoknak megfelelő mértékben."]
["Támogatás típusa","Legördülő menüből szükséges választani. A jóváhagyott támogatási tevékenységek az EPTK felületen a Szerződés/Hatályos támogatási szerződés megtekintése/Pénzügyi adatok/Költségek űralapon tekinthető meg."]
["Tám. int.","Az egyes tevékenységekhez kapcsolódó jóváhagyott támogatási intenzitás az EPTK felületen a Szerződés/Hatályos támogatási szerződés megtekintése/Pénzügyi adatok/Költségek űralapon tekinthető meg."]
[]
["ANYAGKÖLTSÉGE, IGÉNYBE VETT SZOLGÁLTATÁS, EGYÉB SZOLGÁLTATÁS, IMMAT.JAVAK, MŰSZAKI/EGYÉB BERENDEZÉSEK BESZERZÉSE, BERUHÁZÁS, FELÚJÍTÁS TÁBLÁZATOK KITÖLTÉSÉHEZ"]
["Sorszám","Folyamatos sorszámozás."]
["Számviteli bizonylat kiállítójának neve","Az elszámoló bizonylaton szereplő szállító neve."]
["Adószáma","Az elszámoló bizonylaton szereplő szállító adószáma."]
["Számviteli bizonylat sorszáma","Az elszámoló bizonylat sorszáma. Egy sorba csak egy elszámoló bizonylatot vezessen fel."]
["Kiállítás kelte","Az elszámoló bizonylaton szereplő kiállítás dátuma."]
["Teljesítés dátuma","Az elszámoló bizonylaton szereplő teljesítés dátuma. Amennyiben ilyen dátum nem szerepel az elszámoló bizonylaton, kérjük, hogy az elszámoló bizonylat keltét tüntesse fel ebben az oszlopban."]
["Pénzügyi teljesítés időpontja","Az elszámoló bizonylat pénzügyi teljesítésének dátuma."]
["Amortizációnál az elszámolt időszak kezdete","Az eszköz/jószág aktiválásának kezdete. Amennyiben ez korábbi, minta az adott mérföldkő kezdete, akkor a mérföldkő kezdetének dátuma."]
["Amortizációnál az elszámolt időszak vége","Azaz időpont, amikor az eszköz/jószág értéke kifut 0-ára. Amennyiben ez későbbi, mint az adott mérföldkő vége, akkor a mérföldkő végének dátuma."]
["amortizációs kulcs %","A Számviteli törvény alapján meghatározott amortizációs kulcs."]
["Gazdasági esemény rövid leírása","Az elszámoló bizonylaton szereplő termék vagy szolgáltatás megnevezése."]
["Összeg (bruttó, áfa, nettó)","Az elszámoló bizonylaton szereplő teljes összeg bruttó, áfa, nettó bontásban."]
["Projekt terhére elszámolt költségek (Ft) (támogatás, saját forrás, egyéb, összesen)","Az elszámoló bizonylat teljes bruttó összegéből a projekt terhére elszámolni kívánt összeg támogatás, saját forrás, egyéb megbontásban."]
["Támogatás típusa","Legördülő menüből szükséges választani. A jóváhagyott támogatási tevékenységek az EPTK felületen a Szerződés/Hatályos támogatási szerződés megtekintése/Pénzügyi adatok/Költségek űralapon tekinthető meg."]
["Tám. int.","Az egyes tevékenységekhez kapcsolódó jóváhagyott támogatási intenzitás az EPTK felületen a Szerződés/Hatályos támogatási szerződés megtekintése/Pénzügyi adatok/Költségek űralapon tekinthető meg."]

{"sheet":"Alátámasztó dokumentumok","index":1,"n_rows":26,"n_cols":3,"rows_kept":26,"cut":false,"hidden":false,"merged":[[18,0,18,1],[14,0,14,2],[17,0,17,2],[3,0,3,2],[0,0,0,2],[8,0,8,2]]}
["PÉNZÜGYI BESZÁMOLÓ - ALÁTÁMASZTÓ DOKUMENTUMOK LISTÁJA"]
[]
[]
["Pénzügyi beszámoló beadáskor minden esetben kötelezően benyújtandó dokumentumok"]
["KNY","Könyvvizsgálói nyilatkozat","Cégvezető és könyvvizsgáló által cégszerűen aláírt eredeti nyilatkozat. ÁHT-n belüli kedvezményezettek esetén nem szükséges a könyvvizsgáló általi hitelesítés, ott elegendő az intézmény gazdálkodásáért felelős (pl. kancellár, gazdasági-,pénzügyi vezető, gazdasági igazgató, stb.) által aláírt könyvvizsgálói nyilatkozat. ÁHT-n kívüli kedvezményezettek esetén a benyújtott elszámolás könyvvizsgáló általi hitelesítése kötelező, azonban a hiánypótlás során már nem szükséges újra hitelesíttetni az elszámolást, ott elegendő a cég részéről (gazdasági vezető és/vagy ügyvezető által) aláírt formanyomtatvány."]
["11, 13,14, 16, 51-56","Pénzügyi beszámoló formanyomtatvány","Kitöltött excel táblázat valamennyi szignózott oldala (az üres költségösszesítő oldalak is) eredeti példányban postai úton, valamint .excel és .pdf formátumban EPTK felületen a benyújtott beszámoló mellékleteként csatolva."]
["LNY","Lemondó nyilatkozat (*)","Kedvezményezett által cégszerűen aláírt eredeti példányát csak a projekt utolsó elszámolásakor kell beadni (postai úton és szkennelve EPTK felületen a beszámoló mellékleteként), amennyiben a megítélt támogatás nem került teljes mértékben felhasználásra"]
["Egyéb","Szakmai beszámoló formanyomtatvány","A pénzügyi beszámoló csak szakmai beszámolóval együtt nyújtható be. A kitöltött szakmai beszámoló formanyomtatványt az EPTK felületen rögzített szakmai beszámoló mellékleteként pdf formátumban szükséges csatolni."]
["Az alábbi költség típusokhoz tartozó bizonylat elszámolásakor kötelezően benyújtandó dokumentumok"]
["52-53","Igénybevett vagy egyéb szolgáltatás","A szolgáltatókkal megkötött szerződések, azok mellékletei, a szolgáltatatás eredményét alátámasztó dokumentumok EPTK felületen a szakmai beszámoló mellékleteként csatolva."]
["11, 13-14,","Eszközök, immateriális javak,\nműszaki berendezések, gépek,\njárművek","Árajánlatok, megrendelők/szerződések, eszközkarton, üzembe helyezési jegyzőkönyv, fotódokumentáció (ahol releváns, például eszközök esetében) EPTK felületen a szakmai beszámoló mellékleteként csatolva."]
[16,"Beruházások, felújítások","Beruházásra, felújításra vonatkozó tervek, kivitelezésre vonatkozó költségvetés, bonyolítói vagy műszaki ellenőri teljesítési igazolás, rész vagy végleges átadás–átvételi jegyzőkönyv, használatba vételi engedély (amennyiben már rendelkeznek vele), fotódokumentáció EPTK felületen a szakmai beszámoló mellékleteként csatolva."]
[]
[]
["A 2017. január 01-je után hatályba lépett támogatási szerződések esetén a beszámoló ellenőrzése mintavételes ellenőrzés útján történik, az ÁVR 100§-a alapján . Az elszámolás beérkezésekor, az excel táblázat első körös ellenőrzése után az ügyintéző mintavételes ellenőrzés keretében kéri be a kiválasztott tételekhez kapcsolódóan költség típusonként az alábbi alátámasztó dokumentumokat."]
[]
[]
["Mintavétel során általánosságban bekérhető dokumentumok listája költség típusonként"]
["Költség típus",null,"Alátámasztó dokumentum"]
["54-56","Személyi juttatások és járulékai","Munkaszerződés/megbízási szerződés/kinevezési okirat , bérkarton/bérjegyzék, munkaköri leírás, (végzettséget igazoló dokumentáció, önéletrajz amennyiben a Pályázati útmutató előírja) kifizetési bizonylat (bér és járulék), teljesítési igazolás (megbízási szerződés esetén). Amennyiben az előző mérföldkőnél már beküldésre került a mintavételezett dokumentum csak a módosításokat kérjük benyújtani."]
[51,"Anyagköltség","Árajánlat, szerződés, eredetivel megegyező hiteles számlamásolat, kiegyenlítést alátámasztó dokumentum (bankkivonat, pénztárbizonylat vagy időszaki pénztárjelentés)."]
["52-53","Szolgáltatások","Árajánlat, szerződés, eredetivel megegyező hiteles számlamásolat, teljesítés igazolás, kiegyenlítést alátámasztó dokumentum (bankkivonat, pénztárbizonylat vagy időszaki pénztárjelentés), 200.000+ÁFA felett kötelező a szerződés és teljesítés igazolás  benyújtása is."]
[52,"Rezsi költségek","Eredetivel megegyező hiteles számlamásolat,  főkönyvi kivonat."]
[11,"Immateriális javak beszerzése","Árajánlat, szerződés, eredetivel megegyező hiteles számlamásolat, eszköz karton, ütembehelyezési okmány, szállító levél, kiegyenlítést alátámasztó dokumentum  (bankkivonat, pénztárbizonylat vagy időszaki pénztárjelentés)."]
["13-14","Eszközbeszerzések","Árajánlat, szerződés, eredetivel megegyező hiteles számlamásolat,  eszköz karton, üzembe helyezési okmány, szállítólevél,  kiegyenlítést alátámasztó dokumentum  (bankkivonat, pénztárbizonylat vagy időszaki pénztárjelentés)."]
[16,"Beruházás, felújítás","Árajánlat, szerződés, eredetivel megegyező hiteles számlamásolat, kiegyenlítést alátámasztó dokumentum  (bankkivonat, pénztárbizonylat vagy időszaki pénztárjelentés)."]

{"sheet":"(KNY)könyvvizsgálói nyilatkozat","index":2,"n_rows":46,"n_cols":5,"rows_kept":46,"cut":false,"hidden":false,"merged":[[38,0,38,4],[44,0,44,4],[45,0,45,4],[3,1,3,2],[4,1,4,2],[5,1,5,2],[13,0,13,4],[32,2,32,4],[35,0,35,4]]}
["Egy példányban kitöltve, eredeti aláírással és bélyegzéssel ellátva kell benyújtani.",null,null,null,"Formanyomtatvány pénzügyi elszámoláshoz"]
["A táblázat adatai a többi munkalapról automatikusan bemásolódnak!"]
[]
["Kedvezményezett neve:","MINTA Kft."]
["Szerződésszám:","2017-1.2.1-NKP-0000-00000"]
["Az elszámolással érintett időszak kezdete és vége:","2017.11.01.-2018.10.31."]
[]
[]
[]
[null,null,"N Y I L A T K O Z A T"]
[null,null,"(a kedvezményezett tölti ki)"]
[]
[]
["Alulírott Minta János, mint a MINTA Kft. cégjegyzésre jogosult vezetője teljes jogi felelősséggel nyilatkozom, hogy a fenti támogatási szerződés alapján a szakmai és pénzügyi beszámolóra vonatkozó előírások szerint a támogatás és a saját/egyéb forrás felhasználásáról, valamint a kamatok tekintetében teljes körű, elkülönített nyilvántartást vezetek. \nAz elszámolni kívánt költségek az adott projektre vonatkozó tárgyi és időbeli elszámolhatósági szabályokkal összhangban, számlákkal vagy egyéb a költséget igazoló számviteli bizonylatokkal alátámasztva, teljesítésigazolás mellett kerültek felhasználásra és azokra további EU-s vagy egyéb hazai támogatás nem került elszámolásra.\nA szerződés melléklete alapján, a számlaösszesítőkben feltüntetett részfeladatok teljesítése során keletkezett ráfordítások összege 20 161 144 Ft azaz Húszmillió-egyszázhatvanegyezer-egyszáznegyvennégy forint, az alábbi forrásonként és jogcímenként kerülnek elszámolásra. A kimutatott ráfordítások a szerződésben vállalt célok megvalósítása érdekében merültek fel."]
[]
[]
["Költségtípusok","Támogatás (Ft)","Saját forrás (Ft)","Egyéb forrás (Ft)","Összesen (Ft)"]
["54. Személyi juttatások ",{"$f":"+'(54-56) személyi+járulék'!N45","v":14358000},{"$f":"+'(54-56) személyi+járulék'!O45","v":1502000},{"$f":"+'(54-56) személyi+járulék'!P45","v":0},{"$f":"SUM(B18:D18)","v":15860000}]
["56. Munkaadókat terhelő járulékok ",{"$f":"+'(54-56) személyi+járulék'!Q45","v":2782650},{"$f":"+'(54-56) személyi+járulék'!R45","v":288600},{"$f":"+'(54-56) személyi+járulék'!S45","v":0},3071250]
["51. Anyagköltség",{"$f":"+'(51) anyagköltség '!L26","v":458598},{"$f":"+'(51) anyagköltség '!M26","v":0},{"$f":"+'(51) anyagköltség '!N26","v":0},458598]
["52. Igénybe vett szolgáltatások",{"$f":"+'(52) igénybe vett szolg'!L28","v":1635000},{"$f":"+'(52) igénybe vett szolg'!M28","v":0},{"$f":"+'(52) igénybe vett szolg'!N28","v":0},1635000]
["53. Egyéb szolgáltatások",{"$f":"+'(53) egyéb szolgáltatások'!L25","v":0},{"$f":"+'(53) egyéb szolgáltatások'!M25","v":0},{"$f":"+'(53) egyéb szolgáltatások'!N25","v":0},0]
["11. Immateriális javak",{"$f":"+'(11) immat jav beszerz'!O27","v":223799},{"$f":"+'(11) immat jav beszerz'!P27","v":176220},{"$f":"+'(11) immat jav beszerz'!Q27","v":47579},447598]
["13. Műszaki gépek berendezések, járművek",{"$f":"+'(13) műszaki berendezések'!O26","v":37894},{"$f":"+'(13) műszaki berendezések'!P26","v":29837},{"$f":"+'(13) műszaki berendezések'!Q26","v":3222},70953]
["14. Egyéb berendezések, felszerelések, járművek",{"$f":"+'(14) egyéb berendezések'!O27","v":0},{"$f":"+'(14) egyéb berendezések'!P27","v":0},{"$f":"+'(14) egyéb berendezések'!Q27","v":0},0]
["16. Beruházások, felújítások",{"$f":"+'(16) beruházás,felújítás'!O27","v":0},{"$f":"+'(16) beruházás,felújítás'!P27","v":0},{"$f":"+'(16) beruházás,felújítás'!Q27","v":0},0]
["Összesen:",{"$f":"SUM(B18:B26)","v":19495941},{"$f":"SUM(C18:C26)","v":1996657},50801,{"$f":"SUM(E18:E26)","v":21543399}]
[]
["Budapest,  2019. év 04. hó 12. nap."]
[]
[]
[null,null,null,"…………………………"]
[null,null," "]
[null,null,null,"PH."]
[null,null,null,"Minta János ügyvezető igazgató"]
["Alulírott Könyvvizsgáló Katalin, mint a MINTA Kft  társaság/szervezet (megbízott) könyvvizsgálója, és Gazdasági Gabriella, mint a MINTA Kft társaság/szervezet gazdasági vezetője igazolom, hogy a fenti adatok a MINTA Kft. elkülönített számviteli nyilvántartásával megegyeznek."]
[]
["Budapest,  2019. év 04. hó 12. nap."]
[]
[]
[null,"………………………",null,null,"…………………………"]
[null,"gazdasági vezető aláírása*",null,null,"könyvvizsgáló aláírása*"]
[null,"Gazdasági Gabriella ",null,null,"Könyvvizsgálói Kamaránál nyilvántartott bejegyzési szám: ……………………."]
[{"$nulls":4},"Könyvvizsgáló Katalin"]
[]
["* Az aláírók nevét nyomtatott betűkkel is kérjük kitölteni."]

{"sheet":"(54-56) személyi+járulék","index":3,"n_rows":47,"n_cols":21,"rows_kept":47,"cut":false,"hidden":false,"merged":[[46,0,48,20],[43,0,43,20],[44,0,44,6],[6,0,6,1],[6,6,7,6],[6,19,7,19],[6,2,6,3],[6,20,7,20],[6,4,7,4],[0,0,0,5],[1,0,1,5],[2,0,2,5],[0,6,0,10],[1,6,1,10],[2,6,2,10],[4,0,4,20],[6,5,7,5],[6,16,6,18],[6,7,6,9],[6,10,6,12],[6,13,6,15]]}
["Kedvezményezett neve:",{"$nulls":5},{"$f":"+'(KNY)könyvvizsgálói nyilatkozat'!$B4","v":"MINTA Kft."}]
["Szerződésszám:",{"$nulls":5},{"$f":"+'(KNY)könyvvizsgálói nyilatkozat'!$B5","v":"2017-1.2.1-NKP-0000-00000"}]
["Mérföldkő dátuma::",{"$nulls":5},{"$f":"+'(KNY)könyvvizsgálói nyilatkozat'!$B6","v":"2017.11.01.-2018.10.31."}]
[]
["54 -56 SZEMÉLYI JUTTATÁSOK ÉS JÁRULÉKAI"]
[]
["Projektben résztvevő dolgozók",null,"Az elszámolt időszak",null,"Az adott hónapban a projektre elszámolt munka-órák száma*","Pénzügyi teljesítés időpontja","Állandó dolgozó (Á), vagy megbí-zásos dolgozó (M)  (legördülő menű)","Projektre elszámolt bruttó bér (Ft)",null,null,"Projektre elszámolt egyéb juttatások (Ft) (pld. napidíj, stb.)",null,null,"Projektre elszámolt bruttó bér és juttatások összesen (Ft)",null,null,"Projektre elszámolt bruttó bér járuléka (Ft)",null,null,"Támogatás típusa","Tám. int."]
["neve","státusza (legördülő menű)\n","kezdete (dátum)","vége (dátum)",null,null,null,"Támogatás","Saját forrás","Egyéb forrás","Támogatás","Saját forrás","Egyéb forrás","Támogatás","Saját forrás","Egyéb forrás","Támogatás","Saját forrás","Egyéb forrás"]
["Minta János","K+F munkatárs","2017-12-01","2017-12-31",72,"2018-01-03","Á",650000,0,0,8000,2000,0,{"$f":"H9+K9","v":658000},{"$f":"I9+L9","v":2000},{"$f":"J9+M9","v":0},126750,0,0,"K+F/Alap.",1]
["Minta János","K+F munkatárs","2018-01-01","2018-01-31",65,"2018-02-03","Á",650000,0,0,8000,2000,0,{"$f":"H10+K10","v":658000},{"$f":"I10+L10","v":2000},0,126750,0,0,"K+F/Alap.",1]
["Minta János","K+F munkatárs","2018-02-01","2018-02-28",72,"2018-03-03","Á",650000,0,0,8000,2000,0,658000,2000,0,126750,0,0,"K+F/Alap.",1]
["Minta János","K+F munkatárs","2018-03-01","2018-03-31",68,"2018-04-03","Á",650000,0,0,8000,2000,0,658000,2000,0,126750,0,0,"K+F/Alap.",1]
["Minta János","K+F munkatárs","2018-04-01","2018-04-30",64,"2018-05-03","Á",650000,0,0,0,0,0,650000,0,0,126750,0,0,"K+F/Alap.",1]
["Minta János","K+F munkatárs","2018-05-01","2018-05-31",80,"2018-06-03","Á",650000,0,0,0,0,0,650000,0,0,126750,0,0,"K+F/Alap.",1]
["Minta János","K+F munkatárs","2018-06-01","2018-06-30",80,"2018-07-03","Á",650000,0,0,0,0,0,650000,0,0,126750,0,0,"K+F/Alap.",1]
["Minta János","K+F munkatárs","2018-07-01","2018-07-31",80,"2018-08-03","Á",650000,0,0,0,0,0,650000,0,0,126750,0,0,"K+F/Alap.",1]
["Minta János","K+F munkatárs","2018-08-01","2018-08-31",80,"2018-09-03","Á",650000,0,0,0,0,0,650000,0,0,126750,0,0,"K+F/Alap.",1]
["Minta János","K+F munkatárs","2018-09-01","2018-09-30",72,"2018-10-03","Á",650000,0,0,0,0,0,650000,0,0,126750,0,0,"K+F/Alap.",1]
["Minta János","K+F munkatárs","2018-10-01","2018-10-31",80,"2018-11-03","Á",650000,0,0,0,0,0,650000,0,0,126750,0,0,"K+F/Alap.",1]
["Gipsz Jakab","Techn., segédszem.","2018-01-01","2018-01-31",109,"2018-02-03","Á",150000,0,0,8000,2000,0,158000,2000,{"$f":"J20+M20","v":0},29250,0,0,"K+F/Alap.",1]
["Gipsz Jakab","Techn., segédszem.","2018-02-01","2018-02-28",109,"2018-03-03","Á",150000,0,0,8000,2000,0,158000,2000,0,29250,0,0,"K+F/Alap.",1]
["Gipsz Jakab","Techn., segédszem.","2018-03-01","2018-03-31",70,"2018-05-03","Á",150000,0,0,8000,2000,0,158000,2000,0,29250,0,0,"K+F/Alap.",1]
["Gipsz Jakab","Techn., segédszem.","2018-04-01","2018-04-30",59,"2018-05-03","Á",150000,0,0,0,0,0,150000,0,0,29250,0,0,"K+F/Alap.",1]
["Gipsz Jakab","Techn., segédszem.","2018-05-01","2018-05-31",79,"2018-07-03","Á",150000,0,0,0,0,0,150000,0,{"$f":"J24+M24","v":0},29250,0,0,"K+F/Alap.",1]
["Gipsz Jakab","Techn., segédszem.","2018-06-01","2018-06-30",79,"2018-07-03","Á",150000,0,0,0,0,0,150000,0,0,29250,0,0,"K+F/Alap.",1]
["Gipsz Jakab","Techn., segédszem.","2018-07-01","2018-07-31",79,"2018-08-03","Á",150000,0,0,0,0,0,{"$f":"H26+K26","v":150000},0,0,29250,0,0,"K+F/Alap.",1]
["Gipsz Jakab","Techn., segédszem.","2018-08-01","2018-08-31",79,"2018-09-03","Á",150000,0,0,0,0,0,150000,0,0,29250,0,0,"K+F/Alap.",1]
["Szabó János","K+F munkatárs","2018-03-01","2018-03-31",152,"2018-04-03","Á",600000,150000,0,8000,2000,0,{"$f":"H28+K28","v":608000},{"$f":"I28+L28","v":152000},0,117000,29250,0,"K+F/Kis.fejl.",0.8]
["Szabó János","K+F munkatárs","2018-04-01","2018-04-30",160,"2018-05-03","Á",600000,150000,0,0,0,0,600000,150000,0,117000,29250,0,"K+F/Kis.fejl.",0.8]
["Szabó János","K+F munkatárs","2018-05-01","2018-05-31",168,"2018-06-03","Á",600000,150000,0,0,0,0,600000,150000,0,117000,29250,0,"K+F/Kis.fejl.",0.8]
["Szabó János","K+F munkatárs","2018-06-01","2018-06-30",152,"2018-07-03","Á",600000,150000,0,0,0,0,600000,150000,0,117000,29250,0,"K+F/Kis.fejl.",0.8]
["Szabó János","K+F munkatárs","2018-07-01","2018-07-31",176,"2018-08-03","Á",600000,150000,0,0,0,0,600000,150000,0,117000,29250,0,"K+F/Kis.fejl.",0.8]
["Szabó János","K+F munkatárs","2018-08-01","2018-08-31",176,"2018-09-03","Á",600000,150000,0,0,0,0,600000,150000,0,117000,29250,0,"K+F/Kis.fejl.",0.8]
["Szabó János","K+F munkatárs","2018-09-01","2018-09-30",80,"2018-10-03","Á",600000,150000,0,0,0,0,600000,150000,0,117000,29250,0,"K+F/Kis.fejl.",0.8]
["Szabó János","K+F munkatárs","2018-10-01","2018-10-31",168,"2018-11-03","Á",600000,150000,0,0,0,0,600000,150000,0,117000,29250,0,"K+F/Kis.fejl.",0.8]
["Kiss János","Techn., segédszem.","2018-01-01","2018-01-31",109,"2018-02-03","Á",120000,30000,0,8000,2000,0,{"$f":"H36+K36","v":128000},{"$f":"I36+L36","v":32000},0,23400,5850,0,"K+F/Kis.fejl.",0.8]
["Kiss János","Techn., segédszem.","2018-02-01","2018-02-28",109,"2018-03-03","Á",120000,30000,0,8000,2000,0,128000,32000,0,23400,5850,0,"K+F/Kis.fejl.",0.8]
["Kiss János","Techn., segédszem.","2018-03-01","2018-03-31",70,"2018-05-03","Á",120000,30000,0,8000,2000,0,128000,32000,0,23400,5850,0,"K+F/Kis.fejl.",0.8]
["Kiss János","Techn., segédszem.","2018-04-01","2018-04-30",59,"2018-05-03","Á",120000,30000,0,0,0,0,120000,30000,0,23400,5850,0,"K+F/Kis.fejl.",0.8]
["Kiss János","Techn., segédszem.","2018-05-01","2018-05-31",79,"2018-07-03","Á",160000,40000,0,0,0,0,160000,40000,0,31200,7800,0,"K+F/Kis.fejl.",0.8]
["Kiss János","Techn., segédszem.","2018-06-01","2018-06-30",79,"2018-07-03","Á",160000,40000,0,0,0,0,160000,40000,0,31200,7800,0,"K+F/Kis.fejl.",0.8]
["Kiss János","Techn., segédszem.","2018-07-01","2018-07-31",79,"2018-08-03","Á",160000,40000,0,0,0,0,160000,40000,0,31200,7800,0,"K+F/Kis.fejl.",0.8]
["Kiss János","Techn., segédszem.","2018-08-01","2018-08-31",79,"2018-09-03","Á",160000,40000,0,0,0,0,160000,40000,0,31200,7800,0,"K+F/Kis.fejl.",0.8]
[]
["Összesen:",{"$nulls":6},{"$f":"SUM(H9:H43)","v":14270000},{"$f":"SUM(I9:I43)","v":1480000},0,88000,22000,0,14358000,1502000,0,2782650,288600,0]
[]
["* Amennyiben a pályázati felhívás/útmutató megengedi a szabadság, betegszabadság, ünnepnap elszámolását a projekt terhére, úgy szíveskedjenek a feltüntetett munkaórákba beleszámítani ezek idejét is!"]

{"sheet":"(51) anyagköltség ","index":4,"n_rows":26,"n_cols":17,"rows_kept":26,"cut":false,"hidden":false,"merged":[[0,0,0,3],[0,4,0,8],[1,0,1,3],[1,4,1,8],[2,0,2,3],[2,4,2,8],[24,0,24,16],[25,0,25,7],[25,15,25,16],[4,0,4,16],[6,0,7,0],[6,1,7,1],[6,2,7,2],[6,3,7,3],[6,4,7,4],[6,5,7,5],[6,6,7,6],[6,7,7,7],[6,8,6,10],[6,11,6,14],[6,15,7,15],[6,16,7,16]]}
["Kedvezményezett neve:",null,null,null,{"$f":"+'(KNY)könyvvizsgálói nyilatkozat'!$B4","v":"MINTA Kft."}]
["Szerződésszám:",null,null,null,{"$f":"+'(KNY)könyvvizsgálói nyilatkozat'!$B5","v":"2017-1.2.1-NKP-0000-00000"}]
["Az elszámolással érintett időszak kezdete és vége:",null,null,null,{"$f":"+'(KNY)könyvvizsgálói nyilatkozat'!$B6","v":"2017.11.01.-2018.10.31."}]
[]
["51 Anyagköltség"]
[]
["Sor-szám","Számviteli bizonylat kiállítójának neve","Adószáma","Számviteli bizonylat sorszáma","Kiállítás kelte","Teljesítés dátuma","Pénzügyi teljesítés időpontja","Gazdasági esemény rövid leírása","Összege (Ft)",null,null,"Projekt terhére elszámolt költségek (Ft)",null,null,null,"Támogatás típusa","Tám. int."]
["szám",{"$nulls":7},"Bruttó","Nettó","ÁFA","Támogatás","Saját forrás","Egyéb f.","Összesen"]
["1.","ANYAG Kft.","11111111-1-11","A-12345","2018-09-14","2018-09-14","2018-11-05","műszerdoboz, tápegység",77500,61024,16476,77500,0,0,77500,"K+F/Alap.",1]
["2.","Nitrogén Kft.","22222222-2-22","B-11111","2018-07-01","2018-06-26","2018-08-19","cseppfolyós nitrogén",103632,81600,22032,103632,0,0,103632,"K+F/Alap.",1]
["3.","Import Gmbh.",12345678,"12345","2018-02-06","2018-02-06","2018-03-05","Toxkit",222546,222546,0,222546,0,0,222546,"K+F/Alap.",1]
["4.","Nemzeti Adó- és Vámhivatal","15789934-2-51","12345","2018-02-06","2018-02-06","2018-02-06","Fordított áfa - toxkit-Import Gmbh. - 12345",54920,0,54920,54920,0,0,54920,"K+F/Alap.",1]
{"$rows_empty":13}
[" Összesen",{"$nulls":7},{"$f":"SUM(I9:I24)","v":458598},{"$f":"SUM(J9:J24)","v":365170},93428,458598,0,0,458598]

{"sheet":"(52) igénybe vett szolg","index":5,"n_rows":28,"n_cols":17,"rows_kept":28,"cut":false,"hidden":false,"merged":[[4,0,4,16],[0,4,0,8],[1,4,1,8],[2,0,2,3],[2,4,2,8],[1,0,1,3],[0,0,0,3],[6,8,6,10],[27,15,27,16],[6,15,7,15],[6,7,7,7],[6,6,7,6],[26,0,26,16],[6,16,7,16],[6,11,6,14],[6,2,7,2],[6,3,7,3],[27,0,27,7],[6,4,7,4],[6,5,7,5],[6,1,7,1],[6,0,7,0]]}
["Kedvezményezett neve:",null,null,null,{"$f":"+'(KNY)könyvvizsgálói nyilatkozat'!$B4","v":"MINTA Kft."}]
["Szerződésszám:",null,null,null,{"$f":"+'(KNY)könyvvizsgálói nyilatkozat'!$B5","v":"2017-1.2.1-NKP-0000-00000"}]
["Az elszámolással érintett időszak kezdete és vége:",null,null,null,{"$f":"+'(KNY)könyvvizsgálói nyilatkozat'!$B6","v":"2017.11.01.-2018.10.31."}]
[]
[" 52 Igénybe vett szolgáltatások"]
[]
["Sor-szám","Számviteli bizonylat kiállítójának neve","Adószáma","Számviteli bizonylat sorszáma","Kiállítás kelte","Teljesítés dátuma","Pénzügyi teljesítés időpontja","Gazdasági esemény rövid leírása","Összege (Ft)",null,null,"Projekt terhére elszámolt költségek (Ft)",null,null,null,"Támogatás típusa","Tám. int."]
["szám",{"$nulls":7},"Bruttó","Nettó","ÁFA","Támogatás","Saját forrás","Egyéb f.","Összesen"]
["1.","Rezsi Bt","33333333-3-33","100","2017-11-01","2018-10-31","2018.11.29","rezsi",1000000,0,0,{"$f":"+I9","v":1000000},0,0,{"$f":"SUM(L9:N9)","v":1000000},"D.M./Rezsi",1]
["2.","Szolg Bt.","44444444-4-44","SZ-123456","2018.10.01","2018.10.01","2018.10.08","tanácsadás",635000,500000,135000,{"$f":"+I10","v":635000},"-","-",{"$f":"SUM(L10:N10)","v":635000},"K+F/Alap.",1]
[{"$nulls":14},{"$f":"SUM(L11:N11)","v":0}]
[{"$nulls":14},0]
[{"$nulls":14},0]
[{"$nulls":14},0]
[{"$nulls":14},0]
[{"$nulls":14},0]
[{"$nulls":14},0]
[{"$nulls":14},0]
[{"$nulls":14},0]
[{"$nulls":14},0]
[{"$nulls":14},0]
[{"$nulls":14},0]
[{"$nulls":14},0]
[{"$nulls":14},0]
[{"$nulls":14},0]
[{"$nulls":14},0]
[]
[" Összesen",{"$nulls":7},{"$f":"SUM(I9:I26)","v":1635000},500000,135000,1635000,0,0,1635000]

{"sheet":"(53) egyéb szolgáltatások","index":6,"n_rows":25,"n_cols":17,"rows_kept":25,"cut":false,"hidden":false,"merged":[[24,0,24,6],[6,7,7,7],[6,15,7,15],[6,16,7,16],[24,15,24,16],[6,4,7,4],[23,0,23,16],[6,8,6,10],[2,0,2,2],[0,3,0,7],[6,5,7,5],[6,3,7,3],[6,6,7,6],[1,3,1,7],[4,0,4,16],[0,0,0,2],[1,0,1,2],[6,0,7,0],[6,1,7,1],[6,2,7,2],[6,11,6,14],[2,3,2,7]]}
["Kedvezményezett neve:",null,null,{"$f":"+'(KNY)könyvvizsgálói nyilatkozat'!$B4","v":"MINTA Kft."}]
["Szerződésszám:",null,null,{"$f":"+'(KNY)könyvvizsgálói nyilatkozat'!$B5","v":"2017-1.2.1-NKP-0000-00000"}]
["Az elszámolással érintett időszak kezdete és vége:",null,null,{"$f":"+'(KNY)könyvvizsgálói nyilatkozat'!$B6","v":"2017.11.01.-2018.10.31."}]
[]
["53 EGYÉB SZOLGÁLTATÁSOK"]
[]
["Sor-szám","Számviteli bizonylat kiállítójának neve","Adószáma","Számviteli bizonylat sorszáma","Kiállítás kelte","Teljesítés dátuma","Pénzügyi teljesítés időpontja","Gazdasági esemény rövid leírása","Összege (Ft)",null,null,"Projekt terhére elszámolt költségek (Ft)",null,null,null,"Támogatás típusa","Tám. int."]
["szám",{"$nulls":7},"Bruttó","Nettó","ÁFA","Támogatás","Saját forrás","Egyéb f.","Összesen"]
[]
[{"$nulls":14},{"$f":"SUM(L10:N10)","v":0}]
[{"$nulls":14},0]
[{"$nulls":14},0]
[{"$nulls":14},0]
[{"$nulls":14},0]
[{"$nulls":14},0]
[{"$nulls":14},0]
[{"$nulls":14},0]
[{"$nulls":14},0]
[{"$nulls":14},0]
[{"$nulls":14},0]
[{"$nulls":14},0]
[{"$nulls":14},0]
[{"$nulls":14},0]
[]
[" Összesen",{"$nulls":6},{"$f":"SUM(H9:H23)","v":0},0,0,0,0,0,0,0]

{"sheet":"(11) immat jav beszerz","index":7,"n_rows":32,"n_cols":20,"rows_kept":32,"cut":false,"hidden":false,"merged":[[26,0,26,10],[7,19,8,19],[25,0,25,19],[7,9,8,9],[7,18,8,18],[7,7,7,8],[7,10,8,10],[7,11,7,13],[7,14,7,17],[0,0,0,2],[1,0,1,2],[7,0,8,0],[0,3,0,7],[7,1,8,1],[7,2,8,2],[2,0,2,2],[5,0,5,19],[7,3,8,3],[7,4,8,4],[7,5,8,5],[7,6,8,6],[1,3,1,7],[2,3,2,7]]}
["Kedvezményezett neve:",null,null,{"$f":"+'(KNY)könyvvizsgálói nyilatkozat'!$B4","v":"MINTA Kft."}]
["Szerződésszám:",null,null,{"$f":"+'(KNY)könyvvizsgálói nyilatkozat'!$B5","v":"2017-1.2.1-NKP-0000-00000"}]
["Az elszámolással érintett időszak kezdete és vége:",null,null,{"$f":"+'(KNY)könyvvizsgálói nyilatkozat'!$B6","v":"2017.11.01.-2018.10.31."}]
[]
[]
[" 11 IMMATERIÁLIS JAVAK BESZERZÉSE"]
[]
["Sor-szám","Számviteli bizonylat kiállítójának neve","Adószáma","Számviteli bizonylat sorszáma","Kiállítás kelte","Teljesítés dátuma","Pénzügyi teljesítés időpontja","Amortizációnál az elszámolt időszak",null,"amortizá-ciós kulcs %","Gazdasági esemény rövid leírása","Összege (Ft)",null,null,"Projekt terhére elszámolt költségek (Ft)",null,null,null,"Támogatás típusa","Tám. int."]
["szám",{"$nulls":6},"kezdete (dátum)","vége (dátum)",null,null,"Bruttó","Nettó","ÁFA","Támogatás","Saját forrás","Egyéb f.","Összesen"]
["1.","Licence Kft.","7777777-7-77","SZA99999","2017-11-01","2018-10-31","2018-11-13","2017-11-01","2018-10-31",0.33,"professional licenc - éves écs",1356360,1068000,288360,223799,176220,47579,{"$f":"SUM(O10:Q10)","v":447598},"K+F/Kis.fejl.",0.5]
[{"$nulls":17},{"$f":"SUM(O11:Q11)","v":0}]
[{"$nulls":17},0]
[{"$nulls":17},0]
[{"$nulls":17},0]
[{"$nulls":17},0]
[{"$nulls":17},0]
[{"$nulls":17},0]
[{"$nulls":17},0]
[{"$nulls":17},0]
[{"$nulls":17},0]
[{"$nulls":17},0]
[{"$nulls":17},0]
[{"$nulls":17},0]
[{"$nulls":17},0]
[{"$nulls":17},0]
[]
["Összesen",{"$nulls":10},{"$f":"SUM(L10:L26)","v":1356360},{"$f":"SUM(M10:M26)","v":1068000},288360,{"$f":"SUM(O10:O26)","v":223799},{"$f":"SUM(P10:P26)","v":176220},47579,447598]
[]
[]
[]
[]
["* Az aláírók nevét nyomtatott betűkkel is kérjük kitölteni."]

{"sheet":"(13) műszaki berendezések","index":8,"n_rows":26,"n_cols":20,"rows_kept":26,"cut":false,"hidden":false,"merged":[[25,0,25,10],[7,10,8,10],[7,11,7,13],[7,14,7,17],[7,18,8,18],[24,0,24,19],[5,0,5,19],[7,0,8,0],[7,1,8,1],[7,2,8,2],[7,3,8,3],[7,4,8,4],[7,5,8,5],[7,6,8,6],[7,7,7,8],[7,9,8,9],[7,19,8,19],[0,0,0,2],[1,0,1,2],[2,0,2,2],[0,3,0,7],[1,3,1,7],[2,3,2,7]]}
["Kedvezményezett neve:",null,null,{"$f":"+'(KNY)könyvvizsgálói nyilatkozat'!$B4","v":"MINTA Kft."}]
["Szerződésszám:",null,null,{"$f":"+'(KNY)könyvvizsgálói nyilatkozat'!$B5","v":"2017-1.2.1-NKP-0000-00000"}]
["Az elszámolással érintett időszak kezdete és vége:",null,null,{"$f":"+'(KNY)könyvvizsgálói nyilatkozat'!$B6","v":"2017.11.01.-2018.10.31."}]
[]
[]
["13 Műszaki berendezések, gépek, járművek"]
[]
["Sor-szám","Számviteli bizonylat kiállítójának neve","Adószáma","Számviteli bizonylat sorszáma","Kiállítás kelte","Teljesítés dátuma","Pénzügyi teljesítés időpontja","Amortizációnál az elszámolt időszak",null,"amortizá-ciós kulcs %","Gazdasági esemény rövid leírása","Összege (Ft)",null,null,"Projekt terhére elszámolt költségek (Ft)",null,null,null,"Támogatás típusa","Tám. int."]
["szám",{"$nulls":6},"kezdete (dátum)","vége (dátum)",null,null,"Bruttó","Nettó","ÁFA","Támogatás","Saját forrás","Egyéb f.","Összesen"]
["1.","Eszköz Kft.","55555555-5-55","E-12345","2018-04-15","2018-04-01","2018-04-15",null,null,null,"monitorok - előleg",127000,100000,27000,{"$nulls":4},"K+F/Alap.",1]
["2.","Eszköz Kft.","55555555-5-55","R-11111","2018-05-01","2018-04-01","2018-05-15",null,null,null,"monitorok - részszámla",479298,377400,101898,0,0,0,0,"K+F/Alap.",1]
["3.","Eszköz Kft.","55555555-5-55","V-22222","2018-05-08","2018-05-08","2018-05-16","2018-04-01","2018-10-31",0.25,"monitorok - végszámla - 1/2 évre von.écs",0,0,0,37894,29837,3222,{"$f":"SUM(O12:Q12)","v":70953},"K+F/Alap.",0.5]
[{"$nulls":17},0]
[{"$nulls":17},0]
[{"$nulls":17},0]
[{"$nulls":17},0]
[{"$nulls":17},0]
[{"$nulls":17},0]
[{"$nulls":17},0]
[{"$nulls":17},0]
[{"$nulls":17},0]
[{"$nulls":17},0]
[{"$nulls":17},0]
[{"$nulls":17},0]
[]
["Összesen",{"$nulls":10},{"$f":"SUM(L10:L25)","v":606298},{"$f":"SUM(M10:M25)","v":477400},{"$f":"SUM(N10:N25)","v":128898},{"$f":"SUM(O10:O25)","v":37894},{"$f":"SUM(P10:P25)","v":29837},3222,70953]

{"sheet":"(14) egyéb berendezések","index":9,"n_rows":27,"n_cols":20,"rows_kept":27,"cut":false,"hidden":false,"merged":[[0,0,0,2],[1,0,1,2],[2,0,2,2],[0,3,0,7],[1,3,1,7],[2,3,2,7],[7,19,8,19],[25,0,25,19],[5,0,5,19],[7,0,8,0],[7,1,8,1],[7,2,8,2],[7,3,8,3],[7,4,8,4],[7,5,8,5],[7,6,8,6],[7,7,7,8],[7,9,8,9],[26,0,26,10],[7,10,8,10],[7,11,7,13],[7,14,7,17],[7,18,8,18]]}
["Kedvezményezett neve:",null,null,{"$f":"+'(KNY)könyvvizsgálói nyilatkozat'!$B4","v":"MINTA Kft."}]
["Szerződésszám:",null,null,{"$f":"+'(KNY)könyvvizsgálói nyilatkozat'!$B5","v":"2017-1.2.1-NKP-0000-00000"}]
["Az elszámolással érintett időszak kezdete és vége:",null,null,{"$f":"+'(KNY)könyvvizsgálói nyilatkozat'!$B6","v":"2017.11.01.-2018.10.31."}]
[]
[]
["14 Egyéb  berendezések, felszerelések, járművek"]
[]
["Sor-szám","Számviteli bizonylat kiállítójának neve","Adószáma","Számviteli bizonylat sorszáma","Kiállítás kelte","Teljesítés dátuma","Pénzügyi teljesítés időpontja","Amortizációnál az elszámolt időszak",null,"amortizá-ciós kulcs %","Gazdasági esemény rövid leírása","Összege (Ft)",null,null,"Projekt terhére elszámolt költségek (Ft)",null,null,null,"Támogatás típusa","Tám. int."]
["szám",{"$nulls":6},"kezdete (dátum)","vége (dátum)",null,null,"Bruttó","Nettó","ÁFA","Támogatás","Saját forrás","Egyéb f.","Összesen"]
[]
["2.",{"$nulls":16},{"$f":"SUM(O11:Q11)","v":0}]
[{"$nulls":17},0]
[{"$nulls":17},0]
[{"$nulls":17},0]
[{"$nulls":17},0]
[{"$nulls":17},0]
[{"$nulls":17},0]
[{"$nulls":17},0]
[{"$nulls":17},0]
[{"$nulls":17},0]
[{"$nulls":17},0]
[{"$nulls":17},0]
[{"$nulls":17},0]
[{"$nulls":17},0]
[{"$nulls":17},0]
[]
["Összesen",{"$nulls":10},{"$f":"SUM(L10:L26)","v":0},{"$f":"SUM(M10:M26)","v":0},0,{"$f":"SUM(O10:O26)","v":0},{"$f":"SUM(P10:P26)","v":0},0,0]

{"sheet":"(16) beruházás,felújítás","index":10,"n_rows":27,"n_cols":20,"rows_kept":27,"cut":false,"hidden":false,"merged":[[26,0,26,10],[7,10,8,10],[7,11,7,13],[7,14,7,17],[7,18,8,18],[25,0,25,19],[5,0,5,19],[7,0,8,0],[7,1,8,1],[7,2,8,2],[7,3,8,3],[7,4,8,4],[7,5,8,5],[7,6,8,6],[7,7,7,8],[7,9,8,9],[7,19,8,19],[0,0,0,2],[1,0,1,2],[2,0,2,2],[0,3,0,7],[1,3,1,7],[2,3,2,7]]}
["Kedvezményezett neve:",null,null,{"$f":"+'(KNY)könyvvizsgálói nyilatkozat'!$B4","v":"MINTA Kft."}]
["Szerződésszám:",null,null,{"$f":"+'(KNY)könyvvizsgálói nyilatkozat'!$B5","v":"2017-1.2.1-NKP-0000-00000"}]
["Az elszámolással érintett időszak kezdete és vége:",null,null,{"$f":"+'(KNY)könyvvizsgálói nyilatkozat'!$B6","v":"2017.11.01.-2018.10.31."}]
[]
[]
["16 BERUZÁZÁSOK, FELÚJÍTÁSOK "]
[]
["Sor-szám","Számviteli bizonylat kiállítójának neve","Adószáma","Számviteli bizonylat sorszáma","Kiállítás kelte","Teljesítés dátuma","Pénzügyi teljesítés időpontja","Amortizációnál az elszámolt időszak",null,"amortizá-ciós kulcs %","Gazdasági esemény rövid leírása","Összege (Ft)",null,null,"Projekt terhére elszámolt költségek (Ft)",null,null,null,"Támogatás típusa","Tám. int."]
["szám",{"$nulls":6},"kezdete (dátum)","vége (dátum)",null,null,"Bruttó","Nettó","ÁFA","Támogatás","Saját forrás","Egyéb f.","Összesen"]
[]
["2.",{"$nulls":16},{"$f":"SUM(O11:Q11)","v":0}]
[{"$nulls":17},0]
[{"$nulls":17},0]
[{"$nulls":17},0]
[{"$nulls":17},0]
[{"$nulls":17},0]
[{"$nulls":17},0]
[{"$nulls":17},0]
[{"$nulls":17},0]
[{"$nulls":17},0]
[{"$nulls":17},0]
[{"$nulls":17},0]
[{"$nulls":17},0]
[{"$nulls":17},0]
[{"$nulls":17},0]
[]
["Összesen",{"$nulls":10},{"$f":"SUM(L10:L26)","v":0},{"$f":"SUM(M10:M26)","v":0},0,{"$f":"SUM(O10:O26)","v":0},{"$f":"SUM(P10:P26)","v":0},0,0]

{"sheet":"tám. típus összesítő","index":11,"n_rows":21,"n_cols":57,"rows_kept":21,"cut":false,"hidden":false,"merged":[[1,5,1,12],[4,0,4,12],[0,15,0,19],[4,15,4,27],[0,20,0,27],[0,0,0,4],[1,0,1,4],[1,20,1,27],[1,15,1,19],[0,5,0,12],[3,15,3,27],[0,49,0,56],[19,30,19,32],[0,44,0,48],[4,44,4,56],[1,44,1,48],[1,49,1,56],[0,30,0,34],[19,44,19,46],[1,30,1,34],[2,49,2,56],[0,35,0,42],[1,35,1,42],[2,35,2,42],[20,44,20,46],[2,0,2,4],[2,5,2,12],[2,15,2,19],[2,30,2,34],[2,20,2,27],[19,0,19,2],[19,15,19,17],[3,0,3,12],[2,44,2,48],[20,0,20,2],[20,15,20,17],[20,30,20,32],[3,30,3,42],[4,30,4,42]]}
["Kedvezményezett neve:",{"$nulls":4},{"$f":"+'(KNY)könyvvizsgálói nyilatkozat'!B4","v":"MINTA Kft."},{"$nulls":9},"Kedvezményezett neve:",{"$nulls":4},{"$f":"F1","v":"MINTA Kft."},{"$nulls":9},"Kedvezményezett neve:",{"$nulls":4},{"$f":"+F1","v":"MINTA Kft."},{"$nulls":8},"Kedvezményezett neve:",{"$nulls":4},{"$f":"F1","v":"MINTA Kft."}]
["Szerződésszám:",{"$nulls":4},{"$f":"+'(KNY)könyvvizsgálói nyilatkozat'!B5","v":"2017-1.2.1-NKP-0000-00000"},{"$nulls":9},"Szerződésszám:",{"$nulls":4},{"$f":"F2","v":"2017-1.2.1-NKP-0000-00000"},{"$nulls":9},"Szerződésszám:",{"$nulls":4},{"$f":"+F2","v":"2017-1.2.1-NKP-0000-00000"},{"$nulls":8},"Szerződésszám:",{"$nulls":4},{"$f":"F2","v":"2017-1.2.1-NKP-0000-00000"}]
["Mérföldkő dátuma:",{"$nulls":4},{"$f":"+'(KNY)könyvvizsgálói nyilatkozat'!B6","v":"2017.11.01.-2018.10.31."},{"$nulls":9},"Mérföldkő dátuma:",{"$nulls":4},{"$f":"F3","v":"2017.11.01.-2018.10.31."},{"$nulls":9},"Mérföldkő dátuma:",{"$nulls":4},"2017.11.01.-2018.10.31.",{"$nulls":8},"Mérföldkő dátuma:",{"$nulls":4},{"$f":"F3","v":"2017.11.01.-2018.10.31."}]
[]
[" TÁMOGATÁS",{"$nulls":14}," SAJÁT FORRÁS",{"$nulls":14},"EGYÉB FORRÁS",{"$nulls":13},"ÖSSZESÍTÉS"]
[]
["sor-szám","támogatás típusa","támog. int.","(54) \nszemélyi juttatások","(56)\njárulék","(51)\nanyagköltség","(52)\nigénybe vett szolgáltatások","(53)\negyéb szolgáltatások","(11)\nimmateriális javak beszerzése","(13)\nműszaki berendezések","(14)\negyéb berendezések","(16)\nberuházás,felújítás","összesen",null,null,"sor-szám","támogatás típusa","támog. int.","(54) \nszemélyi juttatások","(56)\njárulék","(51)\nanyagköltség","(52)\nigénybe vett szolgáltatások","(53)\negyéb szolgáltatások","(11)\nimmateriális javak beszerzése","(13)\nműszaki berendezések","(14)\negyéb berendezések","(16)\nberuházás,felújítás","összesen",null,null,"sor-szám","támogatás típusa","támog. int.","(54) \nszemélyi juttatások","(56)\njárulék","(51)\nanyagköltség","(52)\nigénybe vett szolgáltatások","(53)\negyéb szolgáltatások","(11)\nimmateriális javak beszerzése","(13)\nműszaki berendezések","(14)\negyéb berendezések","(16)\nberuházás,felújítás","összesen",null,"sor-szám","támogatás típusa","támog. int.","(54) \nszemélyi juttatások","(56)\njárulék","(51)\nanyagköltség","(52)\nigénybe vett szolgáltatások","(53)\negyéb szolgáltatások","(11)\nimmateriális javak beszerzése","(13)\nműszaki berendezések","(14)\negyéb berendezések","(16)\nberuházás,felújítás","összesen"]
[1,"K+F/Alap.",0,{"$f":"+'(54-56) személyi+járulék'!N45","v":14358000},{"$f":"+'(54-56) személyi+járulék'!Q45","v":2782650},{"$f":"SUMIF('(51) anyagköltség '!$P:$P,B8,'(51) anyagköltség '!$L:$L)","v":458598},{"$f":"SUMIF('(52) igénybe vett szolg'!$P:$P,B8,'(52) igénybe vett szolg'!$L:$L)","v":635000},{"$f":"SUMIF('(53) egyéb szolgáltatások'!$P:$P,$B8,'(52) igénybe vett szolg'!$L:$L)","v":0},{"$f":"SUMIF('(11) immat jav beszerz'!$S:$S,$B8,'(11) immat jav beszerz'!$O:$O)","v":0},{"$f":"SUMIF('(13) műszaki berendezések'!$S:$S,$B8,'(13) műszaki berendezések'!$O:$O)","v":37894},{"$f":"SUMIF('(14) egyéb berendezések'!$S:$S,$B8,'(14) egyéb berendezések'!$O:$O)","v":0},{"$f":"SUMIF('(16) beruházás,felújítás'!$S:$S,$B8,'(16) beruházás,felújítás'!$O:$O)","v":0},{"$f":"SUM(C8:L8)","v":18272142},null,null,1,"K+F/Alap.",0,{"$f":"SUMIF('(54-56) személyi+járulék'!$T:$T,Q8,'(54-56) személyi+járulék'!$O:$O)","v":14000},{"$f":"SUMIF('(54-56) személyi+járulék'!$T:$T,Q8,'(54-56) személyi+járulék'!$R:$R)","v":0},{"$f":"SUMIF('(51) anyagköltség '!$P:$P,Q8,'(51) anyagköltség '!$M:$M)","v":0},{"$f":"SUMIF('(52) igénybe vett szolg'!$P:$P,Q8,'(52) igénybe vett szolg'!$M:$M)","v":0},{"$f":"SUMIF('(53) egyéb szolgáltatások'!$P:$P,$B8,'(52) igénybe vett szolg'!$M:$M)","v":0},{"$f":"SUMIF('(11) immat jav beszerz'!$S:$S,$B8,'(11) immat jav beszerz'!$P:$P)","v":0},{"$f":"SUMIF('(13) műszaki berendezések'!$S:$S,$B8,'(13) műszaki berendezések'!$P:$P)","v":29837},{"$f":"SUMIF('(14) egyéb berendezések'!$S:$S,$B8,'(14) egyéb berendezések'!$P:$P)","v":0},{"$f":"SUMIF('(16) beruházás,felújítás'!$S:$S,$B8,'(16) beruházás,felújítás'!$P:$P)","v":0},{"$f":"SUM(R8:AA8)","v":43837},null,null,1,"K+F/Alap.",0,{"$f":"SUMIF('(54-56) személyi+járulék'!$T:$T,AF8,'(54-56) személyi+járulék'!$P:$P)","v":0},{"$f":"SUMIF('(54-56) személyi+járulék'!$T:$T,AF8,'(54-56) személyi+járulék'!$S:$S)","v":0},{"$f":"SUMIF('(51) anyagköltség '!$P:$P,AF8,'(51) anyagköltség '!$N:$N)","v":0},{"$f":"SUMIF('(52) igénybe vett szolg'!$P:$P,AF8,'(52) igénybe vett szolg'!$N:$N)","v":0},{"$f":"SUMIF('(53) egyéb szolgáltatások'!$P:$P,$B8,'(52) igénybe vett szolg'!$N:$N)","v":0},{"$f":"SUMIF('(11) immat jav beszerz'!$S:$S,$B8,'(11) immat jav beszerz'!$Q:$Q)","v":0},{"$f":"SUMIF('(13) műszaki berendezések'!$S:$S,$B8,'(13) műszaki berendezések'!$Q:$Q)","v":3222},{"$f":"SUMIF('(14) egyéb berendezések'!$S:$S,$B8,'(14) egyéb berendezések'!$Q:$Q)","v":0},{"$f":"SUMIF('(16) beruházás,felújítás'!$S:$S,$B8,'(16) beruházás,felújítás'!$Q:$Q)","v":0},{"$f":"SUM(AG8:AP8)","v":3222},null,1,"K+F/Alap.",0,{"$f":"+D8+S8+AH8","v":14372000},{"$f":"+E8+T8+AI8","v":2782650},458598,635000,0,0,70953,0,0,{"$f":"SUM(AU8:BD8)","v":18319201}]
[2,"K+F/Alkalm.",0,{"$f":"SUMIF('(54-56) személyi+járulék'!$T:$T,B9,'(54-56) személyi+járulék'!$N:$N)","v":0},{"$f":"SUMIF('(54-56) személyi+járulék'!$T:$T,B9,'(54-56) személyi+járulék'!$Q:$Q)","v":0},{"$f":"SUMIF('(51) anyagköltség '!P:P,B9,'(51) anyagköltség '!L:L)","v":0},{"$f":"SUMIF('(52) igénybe vett szolg'!P:P,B9,'(52) igénybe vett szolg'!L:L)","v":0},{"$f":"SUMIF('(53) egyéb szolgáltatások'!$P:$P,$B9,'(52) igénybe vett szolg'!$L:$L)","v":0},{"$f":"SUMIF('(11) immat jav beszerz'!$S:$S,$B9,'(11) immat jav beszerz'!$O:$O)","v":0},{"$f":"SUMIF('(13) műszaki berendezések'!$S:$S,$B9,'(13) műszaki berendezések'!$O:$O)","v":0},{"$f":"SUMIF('(14) egyéb berendezések'!$S:$S,$B9,'(14) egyéb berendezések'!$O:$O)","v":0},{"$f":"SUMIF('(16) beruházás,felújítás'!$S:$S,$B9,'(16) beruházás,felújítás'!$O:$O)","v":0},{"$f":"SUM(C9:L9)","v":0},null,null,2,"K+F/Alkalm.",0,{"$f":"SUMIF('(54-56) személyi+járulék'!$T:$T,Q9,'(54-56) személyi+járulék'!$O:$O)","v":0},{"$f":"SUMIF('(54-56) személyi+járulék'!$T:$T,Q9,'(54-56) személyi+járulék'!$R:$R)","v":0},{"$f":"SUMIF('(51) anyagköltség '!$P:$P,Q9,'(51) anyagköltség '!$M:$M)","v":0},{"$f":"SUMIF('(52) igénybe vett szolg'!$P:$P,Q9,'(52) igénybe vett szolg'!$M:$M)","v":0},{"$f":"SUMIF('(53) egyéb szolgáltatások'!$P:$P,$B9,'(52) igénybe vett szolg'!$M:$M)","v":0},{"$f":"SUMIF('(11) immat jav beszerz'!$S:$S,$B9,'(11) immat jav beszerz'!$P:$P)","v":0},{"$f":"SUMIF('(13) műszaki berendezések'!$S:$S,$B9,'(13) műszaki berendezések'!$P:$P)","v":0},{"$f":"SUMIF('(14) egyéb berendezések'!$S:$S,$B9,'(14) egyéb berendezések'!$P:$P)","v":0},{"$f":"SUMIF('(16) beruházás,felújítás'!$S:$S,$B9,'(16) beruházás,felújítás'!$P:$P)","v":0},{"$f":"SUM(R9:AA9)","v":0},null,null,2,"K+F/Alkalm.",0,{"$f":"SUMIF('(54-56) személyi+járulék'!$T:$T,AF9,'(54-56) személyi+járulék'!$N:$N)","v":0},{"$f":"SUMIF('(54-56) személyi+járulék'!$T:$T,AF9,'(54-56) személyi+járulék'!$Q:$Q)","v":0},{"$f":"SUMIF('(51) anyagköltség '!AT:AT,AF9,'(51) anyagköltség '!AP:AP)","v":0},{"$f":"SUMIF('(52) igénybe vett szolg'!AT:AT,AF9,'(52) igénybe vett szolg'!AP:AP)","v":0},{"$f":"SUMIF('(53) egyéb szolgáltatások'!$P:$P,$B9,'(52) igénybe vett szolg'!$L:$L)","v":0},{"$f":"SUMIF('(11) immat jav beszerz'!$S:$S,$B9,'(11) immat jav beszerz'!$O:$O)","v":0},{"$f":"SUMIF('(13) műszaki berendezések'!$S:$S,$B9,'(13) műszaki berendezések'!$O:$O)","v":0},{"$f":"SUMIF('(14) egyéb berendezések'!$S:$S,$B9,'(14) egyéb berendezések'!$O:$O)","v":0},{"$f":"SUMIF('(16) beruházás,felújítás'!$S:$S,$B9,'(16) beruházás,felújítás'!$O:$O)","v":0},{"$f":"SUM(AG9:AP9)","v":0},null,2,"K+F/Alkalm.",0,{"$f":"+D9+S9+AH9","v":0},{"$f":"+E9+T9+AI9","v":0},{"$f":"+F9+U9+AJ9","v":0},{"$f":"+G9+V9+AK9","v":0},{"$f":"+H9+W9+AL9","v":0},{"$f":"+I9+X9+AM9","v":0},{"$f":"+J9+Y9+AN9","v":0},{"$f":"+K9+Z9+AO9","v":0},{"$f":"+L9+AA9+AP9","v":0},{"$f":"SUM(AU9:BD9)","v":0}]
[3,"K+F/Kis.fejl.",0,{"$f":"SUMIF('(54-56) személyi+járulék'!T:T,B10,'(54-56) személyi+járulék'!N:N)","v":5952000},{"$f":"SUMIF('(54-56) személyi+járulék'!$T:$T,B10,'(54-56) személyi+járulék'!$Q:$Q)","v":1154400},{"$f":"SUMIF('(51) anyagköltség '!P:P,B10,'(51) anyagköltség '!L:L)","v":0},{"$f":"SUMIF('(52) igénybe vett szolg'!P:P,B10,'(52) igénybe vett szolg'!L:L)","v":0},{"$f":"SUMIF('(53) egyéb szolgáltatások'!$P:$P,$B10,'(52) igénybe vett szolg'!$L:$L)","v":0},{"$f":"SUMIF('(11) immat jav beszerz'!$S:$S,$B10,'(11) immat jav beszerz'!$O:$O)","v":223799},{"$f":"SUMIF('(13) műszaki berendezések'!$S:$S,$B10,'(13) műszaki berendezések'!$O:$O)","v":0},{"$f":"SUMIF('(14) egyéb berendezések'!$S:$S,$B10,'(14) egyéb berendezések'!$O:$O)","v":0},{"$f":"SUMIF('(16) beruházás,felújítás'!$S:$S,$B10,'(16) beruházás,felújítás'!$O:$O)","v":0},7330199,null,null,3,"K+F/Kis.fejl.",0,{"$f":"SUMIF('(54-56) személyi+járulék'!$T:$T,Q10,'(54-56) személyi+járulék'!$O:$O)","v":1488000},{"$f":"SUMIF('(54-56) személyi+járulék'!$T:$T,Q10,'(54-56) személyi+járulék'!$R:$R)","v":288600},{"$f":"SUMIF('(51) anyagköltség '!$P:$P,Q10,'(51) anyagköltség '!$M:$M)","v":0},{"$f":"SUMIF('(52) igénybe vett szolg'!$P:$P,Q10,'(52) igénybe vett szolg'!$M:$M)","v":0},{"$f":"SUMIF('(53) egyéb szolgáltatások'!$P:$P,$B10,'(52) igénybe vett szolg'!$M:$M)","v":0},{"$f":"SUMIF('(11) immat jav beszerz'!$S:$S,$B10,'(11) immat jav beszerz'!$P:$P)","v":176220},{"$f":"SUMIF('(13) műszaki berendezések'!$S:$S,$B10,'(13) műszaki berendezések'!$P:$P)","v":0},{"$f":"SUMIF('(14) egyéb berendezések'!$S:$S,$B10,'(14) egyéb berendezések'!$P:$P)","v":0},{"$f":"SUMIF('(16) beruházás,felújítás'!$S:$S,$B10,'(16) beruházás,felújítás'!$P:$P)","v":0},1952820,null,null,3,"K+F/Kis.fejl.",0,{"$f":"SUMIF('(54-56) személyi+járulék'!AX:AX,AF10,'(54-56) személyi+járulék'!AR:AR)","v":0},{"$f":"SUMIF('(54-56) személyi+járulék'!$T:$T,AF10,'(54-56) személyi+járulék'!$Q:$Q)","v":1154400},{"$f":"SUMIF('(51) anyagköltség '!AT:AT,AF10,'(51) anyagköltség '!AP:AP)","v":0},{"$f":"SUMIF('(52) igénybe vett szolg'!AT:AT,AF10,'(52) igénybe vett szolg'!AP:AP)","v":0},{"$f":"SUMIF('(53) egyéb szolgáltatások'!$P:$P,$B10,'(52) igénybe vett szolg'!$L:$L)","v":0},{"$f":"SUMIF('(11) immat jav beszerz'!$S:$S,$B10,'(11) immat jav beszerz'!$O:$O)","v":223799},{"$f":"SUMIF('(13) műszaki berendezések'!$S:$S,$B10,'(13) műszaki berendezések'!$O:$O)","v":0},{"$f":"SUMIF('(14) egyéb berendezések'!$S:$S,$B10,'(14) egyéb berendezések'!$O:$O)","v":0},{"$f":"SUMIF('(16) beruházás,felújítás'!$S:$S,$B10,'(16) beruházás,felújítás'!$O:$O)","v":0},1378199,null,3,"K+F/Kis.fejl.",0,7440000,2597400,0,0,0,623818,0,0,0,10661218]
[4,"D.M./Közbesz.",0,{"$f":"SUMIF('(54-56) személyi+járulék'!T:T,B11,'(54-56) személyi+járulék'!N:N)","v":0},{"$f":"SUMIF('(54-56) személyi+járulék'!$T:$T,B11,'(54-56) személyi+járulék'!$Q:$Q)","v":0},{"$f":"SUMIF('(51) anyagköltség '!P:P,B11,'(51) anyagköltség '!L:L)","v":0},{"$f":"SUMIF('(52) igénybe vett szolg'!P:P,B11,'(52) igénybe vett szolg'!L:L)","v":0},{"$f":"SUMIF('(53) egyéb szolgáltatások'!$P:$P,$B11,'(52) igénybe vett szolg'!$L:$L)","v":0},{"$f":"SUMIF('(11) immat jav beszerz'!$S:$S,$B11,'(11) immat jav beszerz'!$O:$O)","v":0},{"$f":"SUMIF('(13) műszaki berendezések'!$S:$S,$B11,'(13) műszaki berendezések'!$O:$O)","v":0},{"$f":"SUMIF('(14) egyéb berendezések'!$S:$S,$B11,'(14) egyéb berendezések'!$O:$O)","v":0},{"$f":"SUMIF('(16) beruházás,felújítás'!$S:$S,$B11,'(16) beruházás,felújítás'!$O:$O)","v":0},0,null,null,4,"D.M./Közbesz.",0,{"$f":"SUMIF('(54-56) személyi+járulék'!$T:$T,Q11,'(54-56) személyi+járulék'!$O:$O)","v":0},{"$f":"SUMIF('(54-56) személyi+járulék'!$T:$T,Q11,'(54-56) személyi+járulék'!$R:$R)","v":0},{"$f":"SUMIF('(51) anyagköltség '!$P:$P,Q11,'(51) anyagköltség '!$M:$M)","v":0},{"$f":"SUMIF('(52) igénybe vett szolg'!$P:$P,Q11,'(52) igénybe vett szolg'!$M:$M)","v":0},{"$f":"SUMIF('(53) egyéb szolgáltatások'!$P:$P,$B11,'(52) igénybe vett szolg'!$M:$M)","v":0},{"$f":"SUMIF('(11) immat jav beszerz'!$S:$S,$B11,'(11) immat jav beszerz'!$P:$P)","v":0},{"$f":"SUMIF('(13) műszaki berendezések'!$S:$S,$B11,'(13) műszaki berendezések'!$P:$P)","v":0},{"$f":"SUMIF('(14) egyéb berendezések'!$S:$S,$B11,'(14) egyéb berendezések'!$P:$P)","v":0},{"$f":"SUMIF('(16) beruházás,felújítás'!$S:$S,$B11,'(16) beruházás,felújítás'!$P:$P)","v":0},0,null,null,4,"D.M./Közbesz.",0,{"$f":"SUMIF('(54-56) személyi+járulék'!AX:AX,AF11,'(54-56) személyi+járulék'!AR:AR)","v":0},{"$f":"SUMIF('(54-56) személyi+járulék'!$T:$T,AF11,'(54-56) személyi+járulék'!$Q:$Q)","v":0},{"$f":"SUMIF('(51) anyagköltség '!AT:AT,AF11,'(51) anyagköltség '!AP:AP)","v":0},{"$f":"SUMIF('(52) igénybe vett szolg'!AT:AT,AF11,'(52) igénybe vett szolg'!AP:AP)","v":0},{"$f":"SUMIF('(53) egyéb szolgáltatások'!$P:$P,$B11,'(52) igénybe vett szolg'!$L:$L)","v":0},{"$f":"SUMIF('(11) immat jav beszerz'!$S:$S,$B11,'(11) immat jav beszerz'!$O:$O)","v":0},{"$f":"SUMIF('(13) műszaki berendezések'!$S:$S,$B11,'(13) műszaki berendezések'!$O:$O)","v":0},{"$f":"SUMIF('(14) egyéb berendezések'!$S:$S,$B11,'(14) egyéb berendezések'!$O:$O)","v":0},{"$f":"SUMIF('(16) beruházás,felújítás'!$S:$S,$B11,'(16) beruházás,felújítás'!$O:$O)","v":0},0,null,4,"D.M./Közbesz.",0,0,0,0,0,0,0,0,0,0,0]
[5,"D.M./Koord.",0,{"$f":"SUMIF('(54-56) személyi+járulék'!T:T,B12,'(54-56) személyi+járulék'!N:N)","v":0},{"$f":"SUMIF('(54-56) személyi+járulék'!$T:$T,B12,'(54-56) személyi+járulék'!$Q:$Q)","v":0},{"$f":"SUMIF('(51) anyagköltség '!P:P,B12,'(51) anyagköltség '!L:L)","v":0},{"$f":"SUMIF('(52) igénybe vett szolg'!P:P,B12,'(52) igénybe vett szolg'!L:L)","v":0},{"$f":"SUMIF('(53) egyéb szolgáltatások'!$P:$P,$B12,'(52) igénybe vett szolg'!$L:$L)","v":0},{"$f":"SUMIF('(11) immat jav beszerz'!$S:$S,$B12,'(11) immat jav beszerz'!$O:$O)","v":0},{"$f":"SUMIF('(13) műszaki berendezések'!$S:$S,$B12,'(13) műszaki berendezések'!$O:$O)","v":0},{"$f":"SUMIF('(14) egyéb berendezések'!$S:$S,$B12,'(14) egyéb berendezések'!$O:$O)","v":0},{"$f":"SUMIF('(16) beruházás,felújítás'!$S:$S,$B12,'(16) beruházás,felújítás'!$O:$O)","v":0},0,null,null,5,"D.M./Koord.",0,{"$f":"SUMIF('(54-56) személyi+járulék'!$T:$T,Q12,'(54-56) személyi+járulék'!$O:$O)","v":0},{"$f":"SUMIF('(54-56) személyi+járulék'!$T:$T,Q12,'(54-56) személyi+járulék'!$R:$R)","v":0},{"$f":"SUMIF('(51) anyagköltség '!$P:$P,Q12,'(51) anyagköltség '!$M:$M)","v":0},{"$f":"SUMIF('(52) igénybe vett szolg'!$P:$P,Q12,'(52) igénybe vett szolg'!$M:$M)","v":0},{"$f":"SUMIF('(53) egyéb szolgáltatások'!$P:$P,$B12,'(52) igénybe vett szolg'!$M:$M)","v":0},{"$f":"SUMIF('(11) immat jav beszerz'!$S:$S,$B12,'(11) immat jav beszerz'!$P:$P)","v":0},{"$f":"SUMIF('(13) műszaki berendezések'!$S:$S,$B12,'(13) műszaki berendezések'!$P:$P)","v":0},{"$f":"SUMIF('(14) egyéb berendezések'!$S:$S,$B12,'(14) egyéb berendezések'!$P:$P)","v":0},{"$f":"SUMIF('(16) beruházás,felújítás'!$S:$S,$B12,'(16) beruházás,felújítás'!$P:$P)","v":0},0,null,null,5,"D.M./Koord.",0,{"$f":"SUMIF('(54-56) személyi+járulék'!AX:AX,AF12,'(54-56) személyi+járulék'!AR:AR)","v":0},{"$f":"SUMIF('(54-56) személyi+járulék'!$T:$T,AF12,'(54-56) személyi+járulék'!$Q:$Q)","v":0},{"$f":"SUMIF('(51) anyagköltség '!AT:AT,AF12,'(51) anyagköltség '!AP:AP)","v":0},{"$f":"SUMIF('(52) igénybe vett szolg'!AT:AT,AF12,'(52) igénybe vett szolg'!AP:AP)","v":0},{"$f":"SUMIF('(53) egyéb szolgáltatások'!$P:$P,$B12,'(52) igénybe vett szolg'!$L:$L)","v":0},{"$f":"SUMIF('(11) immat jav beszerz'!$S:$S,$B12,'(11) immat jav beszerz'!$O:$O)","v":0},{"$f":"SUMIF('(13) műszaki berendezések'!$S:$S,$B12,'(13) műszaki berendezések'!$O:$O)","v":0},{"$f":"SUMIF('(14) egyéb berendezések'!$S:$S,$B12,'(14) egyéb berendezések'!$O:$O)","v":0},{"$f":"SUMIF('(16) beruházás,felújítás'!$S:$S,$B12,'(16) beruházás,felújítás'!$O:$O)","v":0},0,null,5,"D.M./Koord.",0,0,0,0,0,0,0,0,0,0,0]
[6,"D.M./Tájék.",0,{"$f":"SUMIF('(54-56) személyi+járulék'!T:T,B13,'(54-56) személyi+járulék'!N:N)","v":0},{"$f":"SUMIF('(54-56) személyi+járulék'!$T:$T,B13,'(54-56) személyi+járulék'!$Q:$Q)","v":0},{"$f":"SUMIF('(51) anyagköltség '!P:P,B13,'(51) anyagköltség '!L:L)","v":0},{"$f":"SUMIF('(52) igénybe vett szolg'!P:P,B13,'(52) igénybe vett szolg'!L:L)","v":0},{"$f":"SUMIF('(53) egyéb szolgáltatások'!$P:$P,$B13,'(52) igénybe vett szolg'!$L:$L)","v":0},{"$f":"SUMIF('(11) immat jav beszerz'!$S:$S,$B13,'(11) immat jav beszerz'!$O:$O)","v":0},{"$f":"SUMIF('(13) műszaki berendezések'!$S:$S,$B13,'(13) műszaki berendezések'!$O:$O)","v":0},{"$f":"SUMIF('(14) egyéb berendezések'!$S:$S,$B13,'(14) egyéb berendezések'!$O:$O)","v":0},{"$f":"SUMIF('(16) beruházás,felújítás'!$S:$S,$B13,'(16) beruházás,felújítás'!$O:$O)","v":0},0,null,null,6,"D.M./Tájék.",0,{"$f":"SUMIF('(54-56) személyi+járulék'!$T:$T,Q13,'(54-56) személyi+járulék'!$O:$O)","v":0},{"$f":"SUMIF('(54-56) személyi+járulék'!$T:$T,Q13,'(54-56) személyi+járulék'!$R:$R)","v":0},{"$f":"SUMIF('(51) anyagköltség '!$P:$P,Q13,'(51) anyagköltség '!$M:$M)","v":0},{"$f":"SUMIF('(52) igénybe vett szolg'!$P:$P,Q13,'(52) igénybe vett szolg'!$M:$M)","v":0},{"$f":"SUMIF('(53) egyéb szolgáltatások'!$P:$P,$B13,'(52) igénybe vett szolg'!$M:$M)","v":0},{"$f":"SUMIF('(11) immat jav beszerz'!$S:$S,$B13,'(11) immat jav beszerz'!$P:$P)","v":0},{"$f":"SUMIF('(13) műszaki berendezések'!$S:$S,$B13,'(13) műszaki berendezések'!$P:$P)","v":0},{"$f":"SUMIF('(14) egyéb berendezések'!$S:$S,$B13,'(14) egyéb berendezések'!$P:$P)","v":0},{"$f":"SUMIF('(16) beruházás,felújítás'!$S:$S,$B13,'(16) beruházás,felújítás'!$P:$P)","v":0},0,null,null,6,"D.M./Tájék.",0,{"$f":"SUMIF('(54-56) személyi+járulék'!AX:AX,AF13,'(54-56) személyi+járulék'!AR:AR)","v":0},{"$f":"SUMIF('(54-56) személyi+járulék'!$T:$T,AF13,'(54-56) személyi+járulék'!$Q:$Q)","v":0},{"$f":"SUMIF('(51) anyagköltség '!AT:AT,AF13,'(51) anyagköltség '!AP:AP)","v":0},{"$f":"SUMIF('(52) igénybe vett szolg'!AT:AT,AF13,'(52) igénybe vett szolg'!AP:AP)","v":0},{"$f":"SUMIF('(53) egyéb szolgáltatások'!$P:$P,$B13,'(52) igénybe vett szolg'!$L:$L)","v":0},{"$f":"SUMIF('(11) immat jav beszerz'!$S:$S,$B13,'(11) immat jav beszerz'!$O:$O)","v":0},{"$f":"SUMIF('(13) műszaki berendezések'!$S:$S,$B13,'(13) műszaki berendezések'!$O:$O)","v":0},{"$f":"SUMIF('(14) egyéb berendezések'!$S:$S,$B13,'(14) egyéb berendezések'!$O:$O)","v":0},{"$f":"SUMIF('(16) beruházás,felújítás'!$S:$S,$B13,'(16) beruházás,felújítás'!$O:$O)","v":0},0,null,6,"D.M./Tájék.",0,0,0,0,0,0,0,0,0,0,0]
[7,"D.M./Piac",0,{"$f":"SUMIF('(54-56) személyi+járulék'!T:T,B14,'(54-56) személyi+járulék'!N:N)","v":0},{"$f":"SUMIF('(54-56) személyi+járulék'!$T:$T,B14,'(54-56) személyi+járulék'!$Q:$Q)","v":0},{"$f":"SUMIF('(51) anyagköltség '!P:P,B14,'(51) anyagköltség '!L:L)","v":0},{"$f":"SUMIF('(52) igénybe vett szolg'!P:P,B14,'(52) igénybe vett szolg'!L:L)","v":0},{"$f":"SUMIF('(53) egyéb szolgáltatások'!$P:$P,$B14,'(52) igénybe vett szolg'!$L:$L)","v":0},{"$f":"SUMIF('(11) immat jav beszerz'!$S:$S,$B14,'(11) immat jav beszerz'!$O:$O)","v":0},{"$f":"SUMIF('(13) műszaki berendezések'!$S:$S,$B14,'(13) műszaki berendezések'!$O:$O)","v":0},{"$f":"SUMIF('(14) egyéb berendezések'!$S:$S,$B14,'(14) egyéb berendezések'!$O:$O)","v":0},{"$f":"SUMIF('(16) beruházás,felújítás'!$S:$S,$B14,'(16) beruházás,felújítás'!$O:$O)","v":0},0,null,null,7,"D.M./Piac",0,{"$f":"SUMIF('(54-56) személyi+járulék'!$T:$T,Q14,'(54-56) személyi+járulék'!$O:$O)","v":0},{"$f":"SUMIF('(54-56) személyi+járulék'!$T:$T,Q14,'(54-56) személyi+járulék'!$R:$R)","v":0},{"$f":"SUMIF('(51) anyagköltség '!$P:$P,Q14,'(51) anyagköltség '!$M:$M)","v":0},{"$f":"SUMIF('(52) igénybe vett szolg'!$P:$P,Q14,'(52) igénybe vett szolg'!$M:$M)","v":0},{"$f":"SUMIF('(53) egyéb szolgáltatások'!$P:$P,$B14,'(52) igénybe vett szolg'!$M:$M)","v":0},{"$f":"SUMIF('(11) immat jav beszerz'!$S:$S,$B14,'(11) immat jav beszerz'!$P:$P)","v":0},{"$f":"SUMIF('(13) műszaki berendezések'!$S:$S,$B14,'(13) műszaki berendezések'!$P:$P)","v":0},{"$f":"SUMIF('(14) egyéb berendezések'!$S:$S,$B14,'(14) egyéb berendezések'!$P:$P)","v":0},{"$f":"SUMIF('(16) beruházás,felújítás'!$S:$S,$B14,'(16) beruházás,felújítás'!$P:$P)","v":0},0,null,null,7,"D.M./Piac",0,{"$f":"SUMIF('(54-56) személyi+járulék'!AX:AX,AF14,'(54-56) személyi+járulék'!AR:AR)","v":0},{"$f":"SUMIF('(54-56) személyi+járulék'!$T:$T,AF14,'(54-56) személyi+járulék'!$Q:$Q)","v":0},{"$f":"SUMIF('(51) anyagköltség '!AT:AT,AF14,'(51) anyagköltség '!AP:AP)","v":0},{"$f":"SUMIF('(52) igénybe vett szolg'!AT:AT,AF14,'(52) igénybe vett szolg'!AP:AP)","v":0},{"$f":"SUMIF('(53) egyéb szolgáltatások'!$P:$P,$B14,'(52) igénybe vett szolg'!$L:$L)","v":0},{"$f":"SUMIF('(11) immat jav beszerz'!$S:$S,$B14,'(11) immat jav beszerz'!$O:$O)","v":0},{"$f":"SUMIF('(13) műszaki berendezések'!$S:$S,$B14,'(13) műszaki berendezések'!$O:$O)","v":0},{"$f":"SUMIF('(14) egyéb berendezések'!$S:$S,$B14,'(14) egyéb berendezések'!$O:$O)","v":0},{"$f":"SUMIF('(16) beruházás,felújítás'!$S:$S,$B14,'(16) beruházás,felújítás'!$O:$O)","v":0},0,null,7,"D.M./Piac",0,0,0,0,0,0,0,0,0,0,0]
[8,"D.M./Iparjog",0,{"$f":"SUMIF('(54-56) személyi+járulék'!T:T,B15,'(54-56) személyi+járulék'!N:N)","v":0},{"$f":"SUMIF('(54-56) személyi+járulék'!$T:$T,B15,'(54-56) személyi+járulék'!$Q:$Q)","v":0},{"$f":"SUMIF('(51) anyagköltség '!P:P,B15,'(51) anyagköltség '!L:L)","v":0},{"$f":"SUMIF('(52) igénybe vett szolg'!P:P,B15,'(52) igénybe vett szolg'!L:L)","v":0},{"$f":"SUMIF('(53) egyéb szolgáltatások'!$P:$P,$B15,'(52) igénybe vett szolg'!$L:$L)","v":0},{"$f":"SUMIF('(11) immat jav beszerz'!$S:$S,$B15,'(11) immat jav beszerz'!$O:$O)","v":0},{"$f":"SUMIF('(13) műszaki berendezések'!$S:$S,$B15,'(13) műszaki berendezések'!$O:$O)","v":0},{"$f":"SUMIF('(14) egyéb berendezések'!$S:$S,$B15,'(14) egyéb berendezések'!$O:$O)","v":0},{"$f":"SUMIF('(16) beruházás,felújítás'!$S:$S,$B15,'(16) beruházás,felújítás'!$O:$O)","v":0},0,null,null,8,"D.M./Iparjog",0,{"$f":"SUMIF('(54-56) személyi+járulék'!$T:$T,Q15,'(54-56) személyi+járulék'!$O:$O)","v":0},{"$f":"SUMIF('(54-56) személyi+járulék'!$T:$T,Q15,'(54-56) személyi+járulék'!$R:$R)","v":0},{"$f":"SUMIF('(51) anyagköltség '!$P:$P,Q15,'(51) anyagköltség '!$M:$M)","v":0},{"$f":"SUMIF('(52) igénybe vett szolg'!$P:$P,Q15,'(52) igénybe vett szolg'!$M:$M)","v":0},{"$f":"SUMIF('(53) egyéb szolgáltatások'!$P:$P,$B15,'(52) igénybe vett szolg'!$M:$M)","v":0},{"$f":"SUMIF('(11) immat jav beszerz'!$S:$S,$B15,'(11) immat jav beszerz'!$P:$P)","v":0},{"$f":"SUMIF('(13) műszaki berendezések'!$S:$S,$B15,'(13) műszaki berendezések'!$P:$P)","v":0},{"$f":"SUMIF('(14) egyéb berendezések'!$S:$S,$B15,'(14) egyéb berendezések'!$P:$P)","v":0},{"$f":"SUMIF('(16) beruházás,felújítás'!$S:$S,$B15,'(16) beruházás,felújítás'!$P:$P)","v":0},0,null,null,8,"D.M./Iparjog",0,{"$f":"SUMIF('(54-56) személyi+járulék'!AX:AX,AF15,'(54-56) személyi+járulék'!AR:AR)","v":0},{"$f":"SUMIF('(54-56) személyi+járulék'!$T:$T,AF15,'(54-56) személyi+járulék'!$Q:$Q)","v":0},{"$f":"SUMIF('(51) anyagköltség '!AT:AT,AF15,'(51) anyagköltség '!AP:AP)","v":0},{"$f":"SUMIF('(52) igénybe vett szolg'!AT:AT,AF15,'(52) igénybe vett szolg'!AP:AP)","v":0},{"$f":"SUMIF('(53) egyéb szolgáltatások'!$P:$P,$B15,'(52) igénybe vett szolg'!$L:$L)","v":0},{"$f":"SUMIF('(11) immat jav beszerz'!$S:$S,$B15,'(11) immat jav beszerz'!$O:$O)","v":0},{"$f":"SUMIF('(13) műszaki berendezések'!$S:$S,$B15,'(13) műszaki berendezések'!$O:$O)","v":0},{"$f":"SUMIF('(14) egyéb berendezések'!$S:$S,$B15,'(14) egyéb berendezések'!$O:$O)","v":0},{"$f":"SUMIF('(16) beruházás,felújítás'!$S:$S,$B15,'(16) beruházás,felújítás'!$O:$O)","v":0},0,null,8,"D.M./Iparjog",0,0,0,0,0,0,0,0,0,0,0]
[9,"D.M./Rezsi",0,{"$f":"SUMIF('(54-56) személyi+járulék'!T:T,B16,'(54-56) személyi+járulék'!N:N)","v":0},{"$f":"SUMIF('(54-56) személyi+járulék'!$T:$T,B16,'(54-56) személyi+járulék'!$Q:$Q)","v":0},{"$f":"SUMIF('(51) anyagköltség '!P:P,B16,'(51) anyagköltség '!L:L)","v":0},{"$f":"SUMIF('(52) igénybe vett szolg'!P:P,B16,'(52) igénybe vett szolg'!L:L)","v":1000000},{"$f":"SUMIF('(53) egyéb szolgáltatások'!$P:$P,$B16,'(52) igénybe vett szolg'!$L:$L)","v":0},{"$f":"SUMIF('(11) immat jav beszerz'!$S:$S,$B16,'(11) immat jav beszerz'!$O:$O)","v":0},{"$f":"SUMIF('(13) műszaki berendezések'!$S:$S,$B16,'(13) műszaki berendezések'!$O:$O)","v":0},{"$f":"SUMIF('(14) egyéb berendezések'!$S:$S,$B16,'(14) egyéb berendezések'!$O:$O)","v":0},{"$f":"SUMIF('(16) beruházás,felújítás'!$S:$S,$B16,'(16) beruházás,felújítás'!$O:$O)","v":0},1000000,null,null,9,"D.M./Rezsi",0,{"$f":"SUMIF('(54-56) személyi+járulék'!$T:$T,Q16,'(54-56) személyi+járulék'!$O:$O)","v":0},{"$f":"SUMIF('(54-56) személyi+járulék'!$T:$T,Q16,'(54-56) személyi+járulék'!$R:$R)","v":0},{"$f":"SUMIF('(51) anyagköltség '!$P:$P,Q16,'(51) anyagköltség '!$M:$M)","v":0},{"$f":"SUMIF('(52) igénybe vett szolg'!$P:$P,Q16,'(52) igénybe vett szolg'!$M:$M)","v":0},{"$f":"SUMIF('(53) egyéb szolgáltatások'!$P:$P,$B16,'(52) igénybe vett szolg'!$M:$M)","v":0},{"$f":"SUMIF('(11) immat jav beszerz'!$S:$S,$B16,'(11) immat jav beszerz'!$P:$P)","v":0},{"$f":"SUMIF('(13) műszaki berendezések'!$S:$S,$B16,'(13) műszaki berendezések'!$P:$P)","v":0},{"$f":"SUMIF('(14) egyéb berendezések'!$S:$S,$B16,'(14) egyéb berendezések'!$P:$P)","v":0},{"$f":"SUMIF('(16) beruházás,felújítás'!$S:$S,$B16,'(16) beruházás,felújítás'!$P:$P)","v":0},0,null,null,9,"D.M./Rezsi",0,{"$f":"SUMIF('(54-56) személyi+járulék'!AX:AX,AF16,'(54-56) személyi+járulék'!AR:AR)","v":0},{"$f":"SUMIF('(54-56) személyi+járulék'!$T:$T,AF16,'(54-56) személyi+járulék'!$Q:$Q)","v":0},{"$f":"SUMIF('(51) anyagköltség '!AT:AT,AF16,'(51) anyagköltség '!AP:AP)","v":0},{"$f":"SUMIF('(52) igénybe vett szolg'!AT:AT,AF16,'(52) igénybe vett szolg'!AP:AP)","v":0},{"$f":"SUMIF('(53) egyéb szolgáltatások'!$P:$P,$B16,'(52) igénybe vett szolg'!$L:$L)","v":0},{"$f":"SUMIF('(11) immat jav beszerz'!$S:$S,$B16,'(11) immat jav beszerz'!$O:$O)","v":0},{"$f":"SUMIF('(13) műszaki berendezések'!$S:$S,$B16,'(13) műszaki berendezések'!$O:$O)","v":0},{"$f":"SUMIF('(14) egyéb berendezések'!$S:$S,$B16,'(14) egyéb berendezések'!$O:$O)","v":0},{"$f":"SUMIF('(16) beruházás,felújítás'!$S:$S,$B16,'(16) beruházás,felújítás'!$O:$O)","v":0},0,null,9,"D.M./Rezsi",0,0,0,0,1000000,0,0,0,0,0,1000000]
[10,"Kut.infra.- b.r.",0,{"$f":"SUMIF('(54-56) személyi+járulék'!T:T,B17,'(54-56) személyi+járulék'!N:N)","v":0},{"$f":"SUMIF('(54-56) személyi+járulék'!$T:$T,B17,'(54-56) személyi+járulék'!$Q:$Q)","v":0},{"$f":"SUMIF('(51) anyagköltség '!P:P,B17,'(51) anyagköltség '!L:L)","v":0},{"$f":"SUMIF('(52) igénybe vett szolg'!P:P,B17,'(52) igénybe vett szolg'!L:L)","v":0},{"$f":"SUMIF('(53) egyéb szolgáltatások'!$P:$P,$B17,'(52) igénybe vett szolg'!$L:$L)","v":0},{"$f":"SUMIF('(11) immat jav beszerz'!$S:$S,$B17,'(11) immat jav beszerz'!$O:$O)","v":0},{"$f":"SUMIF('(13) műszaki berendezések'!$S:$S,$B17,'(13) műszaki berendezések'!$O:$O)","v":0},{"$f":"SUMIF('(14) egyéb berendezések'!$S:$S,$B17,'(14) egyéb berendezések'!$O:$O)","v":0},{"$f":"SUMIF('(16) beruházás,felújítás'!$S:$S,$B17,'(16) beruházás,felújítás'!$O:$O)","v":0},0,null,null,10,"Kut.infra.- b.r.",0,{"$f":"SUMIF('(54-56) személyi+járulék'!$T:$T,Q17,'(54-56) személyi+járulék'!$O:$O)","v":0},{"$f":"SUMIF('(54-56) személyi+járulék'!$T:$T,Q17,'(54-56) személyi+járulék'!$R:$R)","v":0},{"$f":"SUMIF('(51) anyagköltség '!$P:$P,Q17,'(51) anyagköltség '!$M:$M)","v":0},{"$f":"SUMIF('(52) igénybe vett szolg'!$P:$P,Q17,'(52) igénybe vett szolg'!$M:$M)","v":0},{"$f":"SUMIF('(53) egyéb szolgáltatások'!$P:$P,$B17,'(52) igénybe vett szolg'!$M:$M)","v":0},{"$f":"SUMIF('(11) immat jav beszerz'!$S:$S,$B17,'(11) immat jav beszerz'!$P:$P)","v":0},{"$f":"SUMIF('(13) műszaki berendezések'!$S:$S,$B17,'(13) műszaki berendezések'!$P:$P)","v":0},{"$f":"SUMIF('(14) egyéb berendezések'!$S:$S,$B17,'(14) egyéb berendezések'!$P:$P)","v":0},{"$f":"SUMIF('(16) beruházás,felújítás'!$S:$S,$B17,'(16) beruházás,felújítás'!$P:$P)","v":0},0,null,null,10,"Kut.infra.- b.r.",0,{"$f":"SUMIF('(54-56) személyi+járulék'!AX:AX,AF17,'(54-56) személyi+járulék'!AR:AR)","v":0},{"$f":"SUMIF('(54-56) személyi+járulék'!$T:$T,AF17,'(54-56) személyi+járulék'!$Q:$Q)","v":0},{"$f":"SUMIF('(51) anyagköltség '!AT:AT,AF17,'(51) anyagköltség '!AP:AP)","v":0},{"$f":"SUMIF('(52) igénybe vett szolg'!AT:AT,AF17,'(52) igénybe vett szolg'!AP:AP)","v":0},{"$f":"SUMIF('(53) egyéb szolgáltatások'!$P:$P,$B17,'(52) igénybe vett szolg'!$L:$L)","v":0},{"$f":"SUMIF('(11) immat jav beszerz'!$S:$S,$B17,'(11) immat jav beszerz'!$O:$O)","v":0},{"$f":"SUMIF('(13) műszaki berendezések'!$S:$S,$B17,'(13) műszaki berendezések'!$O:$O)","v":0},{"$f":"SUMIF('(14) egyéb berendezések'!$S:$S,$B17,'(14) egyéb berendezések'!$O:$O)","v":0},{"$f":"SUMIF('(16) beruházás,felújítás'!$S:$S,$B17,'(16) beruházás,felújítás'!$O:$O)","v":0},0,null,10,"Kut.infra.- b.r.",0,0,0,0,0,0,0,0,0,0,0]
[11,"Nem állami támogatás",0,{"$f":"SUMIF('(54-56) személyi+járulék'!T:T,B18,'(54-56) személyi+járulék'!N:N)","v":0},{"$f":"SUMIF('(54-56) személyi+járulék'!$T:$T,B18,'(54-56) személyi+járulék'!$Q:$Q)","v":0},{"$f":"SUMIF('(51) anyagköltség '!P:P,B18,'(51) anyagköltség '!L:L)","v":0},{"$f":"SUMIF('(52) igénybe vett szolg'!P:P,B18,'(52) igénybe vett szolg'!L:L)","v":0},{"$f":"SUMIF('(53) egyéb szolgáltatások'!$P:$P,$B18,'(52) igénybe vett szolg'!$L:$L)","v":0},{"$f":"SUMIF('(11) immat jav beszerz'!$S:$S,$B18,'(11) immat jav beszerz'!$O:$O)","v":0},{"$f":"SUMIF('(13) műszaki berendezések'!$S:$S,$B18,'(13) műszaki berendezések'!$O:$O)","v":0},{"$f":"SUMIF('(14) egyéb berendezések'!$S:$S,$B18,'(14) egyéb berendezések'!$O:$O)","v":0},{"$f":"SUMIF('(16) beruházás,felújítás'!$S:$S,$B18,'(16) beruházás,felújítás'!$O:$O)","v":0},0,null,null,11,"Nem állami támogatás",0,{"$f":"SUMIF('(54-56) személyi+járulék'!$T:$T,Q18,'(54-56) személyi+járulék'!$O:$O)","v":0},{"$f":"SUMIF('(54-56) személyi+járulék'!$T:$T,Q18,'(54-56) személyi+járulék'!$R:$R)","v":0},{"$f":"SUMIF('(51) anyagköltség '!$P:$P,Q18,'(51) anyagköltség '!$M:$M)","v":0},{"$f":"SUMIF('(52) igénybe vett szolg'!$P:$P,Q18,'(52) igénybe vett szolg'!$M:$M)","v":0},{"$f":"SUMIF('(53) egyéb szolgáltatások'!$P:$P,$B18,'(52) igénybe vett szolg'!$M:$M)","v":0},{"$f":"SUMIF('(11) immat jav beszerz'!$S:$S,$B18,'(11) immat jav beszerz'!$P:$P)","v":0},{"$f":"SUMIF('(13) műszaki berendezések'!$S:$S,$B18,'(13) műszaki berendezések'!$P:$P)","v":0},{"$f":"SUMIF('(14) egyéb berendezések'!$S:$S,$B18,'(14) egyéb berendezések'!$P:$P)","v":0},{"$f":"SUMIF('(16) beruházás,felújítás'!$S:$S,$B18,'(16) beruházás,felújítás'!$P:$P)","v":0},0,null,null,11,"Nem állami támogatás",0,{"$f":"SUMIF('(54-56) személyi+járulék'!AX:AX,AF18,'(54-56) személyi+járulék'!AR:AR)","v":0},{"$f":"SUMIF('(54-56) személyi+járulék'!$T:$T,AF18,'(54-56) személyi+járulék'!$Q:$Q)","v":0},{"$f":"SUMIF('(51) anyagköltség '!AT:AT,AF18,'(51) anyagköltség '!AP:AP)","v":0},{"$f":"SUMIF('(52) igénybe vett szolg'!AT:AT,AF18,'(52) igénybe vett szolg'!AP:AP)","v":0},{"$f":"SUMIF('(53) egyéb szolgáltatások'!$P:$P,$B18,'(52) igénybe vett szolg'!$L:$L)","v":0},{"$f":"SUMIF('(11) immat jav beszerz'!$S:$S,$B18,'(11) immat jav beszerz'!$O:$O)","v":0},{"$f":"SUMIF('(13) műszaki berendezések'!$S:$S,$B18,'(13) műszaki berendezések'!$O:$O)","v":0},{"$f":"SUMIF('(14) egyéb berendezések'!$S:$S,$B18,'(14) egyéb berendezések'!$O:$O)","v":0},{"$f":"SUMIF('(16) beruházás,felújítás'!$S:$S,$B18,'(16) beruházás,felújítás'!$O:$O)","v":0},0,null,11,"Nem állami támogatás",0,0,0,0,0,0,0,0,0,0,0]
[]
["elszámolt költségek összegzése:",null,null,{"$f":"SUM(D8:D18)","v":20310000},{"$f":"SUM(E8:E18)","v":3937050},458598,1635000,0,223799,37894,0,{"$f":"SUM(L8:L18)","v":0},{"$f":"SUM(M8:M18)","v":26602341},null,null,"elszámolt költségek összegzése:",null,null,{"$f":"SUM(S8:S18)","v":1502000},{"$f":"SUM(T8:T18)","v":288600},0,0,0,176220,29837,0,{"$f":"SUM(AA8:AA18)","v":0},{"$f":"SUM(AB8:AB18)","v":1996657},null,null,"elszámolt költségek összegzése:",null,null,{"$f":"SUM(AH8:AH18)","v":0},{"$f":"SUM(AI8:AI18)","v":1154400},0,0,0,223799,3222,0,{"$f":"SUM(AP8:AP18)","v":0},{"$f":"SUM(AQ8:AQ18)","v":1381421},null,"elszámolt költségek összegzése:",null,null,{"$f":"SUM(AV8:AV18)","v":21812000},{"$f":"SUM(AW8:AW18)","v":5380050},458598,1635000,0,623818,70953,0,0,{"$f":"SUM(BE8:BE19)","v":29980419}]
["költségösszegzés a számlaösszesítők alapján:",null,null,{"$f":"'(54-56) személyi+járulék'!N45","v":14358000},{"$f":"'(54-56) személyi+járulék'!Q45","v":2782650},{"$f":"+'(51) anyagköltség '!L26","v":458598},{"$f":"+'(52) igénybe vett szolg'!L28","v":1635000},{"$f":"+'(53) egyéb szolgáltatások'!L25","v":0},{"$f":"'(11) immat jav beszerz'!O27","v":223799},{"$f":"'(13) műszaki berendezések'!O26","v":37894},{"$f":"+'(14) egyéb berendezések'!O27","v":0},{"$f":"'(16) beruházás,felújítás'!O27","v":0},{"$f":"SUM(D21:L21)","v":19495941},null,null,"költségösszegzés a számlaösszesítők alapján:",null,null,{"$f":"+'(54-56) személyi+járulék'!O45","v":1502000},{"$f":"+'(54-56) személyi+járulék'!R45","v":288600},{"$f":"+'(51) anyagköltség '!M26","v":0},{"$f":"+'(52) igénybe vett szolg'!M28","v":0},{"$f":"+'(53) egyéb szolgáltatások'!M25","v":0},{"$f":"+'(11) immat jav beszerz'!P27","v":176220},{"$f":"+'(13) műszaki berendezések'!P26","v":29837},{"$f":"+'(14) egyéb berendezések'!P27","v":0},{"$f":"+'(16) beruházás,felújítás'!P27","v":0},{"$f":"SUM(S21:AA21)","v":1996657},null,null,"költségösszegzés a számlaösszesítők alapján:",null,null,{"$f":"+'(54-56) személyi+járulék'!P45","v":0},{"$f":"+'(54-56) személyi+járulék'!S45","v":0},{"$f":"+'(51) anyagköltség '!N26","v":0},{"$f":"+'(52) igénybe vett szolg'!N28","v":0},{"$f":"+'(53) egyéb szolgáltatások'!N25","v":0},{"$f":"+'(11) immat jav beszerz'!Q27","v":47579},{"$f":"+'(13) műszaki berendezések'!Q26","v":3222},{"$f":"+'(14) egyéb berendezések'!Q27","v":0},{"$f":"+'(16) beruházás,felújítás'!Q27","v":0},{"$f":"SUM(AH21:AP21)","v":50801},null,"költségösszegzés a számlaösszesítők alapján:",null,null,{"$f":"+'(54-56) személyi+járulék'!N45+'(54-56) személyi+járulék'!O45+'(54-56) személyi+járulék'!P45","v":15860000},{"$f":"+'(54-56) személyi+járulék'!Q45+'(54-56) személyi+járulék'!R45+'(54-56) személyi+járulék'!S45","v":3071250},{"$f":"+'(51) anyagköltség '!O26","v":458598},{"$f":"+'(52) igénybe vett szolg'!O28","v":1635000},{"$f":"+'(53) egyéb szolgáltatások'!O25","v":0},{"$f":"+'(11) immat jav beszerz'!R27","v":447598},{"$f":"+'(13) műszaki berendezések'!R26","v":70953},{"$f":"+'(14) egyéb berendezések'!R27","v":0},{"$f":"+'(16) beruházás,felújítás'!R27","v":0},{"$f":"SUM(AV21:BD21)","v":21543399}]

{"sheet":"(LNY) lemondó nyilatkozat","index":12,"n_rows":31,"n_cols":2,"rows_kept":31,"cut":false,"hidden":false,"merged":[[6,0,6,1],[15,0,15,1],[30,0,30,1]]}
[]
["Egy példányban kitöltve, eredeti aláírással és bélyegzéssel ellátva kell benyújtani."]
[]
[]
[]
[]
["Lemondó Nyilatkozat"]
[]
[]
[]
["Kedvezményezett neve",{"$f":"+'(54-56) személyi+járulék'!G1","v":"MINTA Kft."}]
["Szerződésszám",{"$f":"+'(54-56) személyi+járulék'!G2","v":"2017-1.2.1-NKP-0000-00000"}]
["Mérföldkő dátuma:",{"$f":"+'(54-56) személyi+járulék'!G3","v":"2017.11.01.-2018.10.31."}]
[]
[]
["Alulírott <név>, mint a <kedvezményezett megnevezése> társaság/szervezet cégjegyzésre jogosult vezetője nyilatkozom, hogy a fenti azonosító számú projekt megvalósításához a megítélt támogatásból összesen <a ténylegesen elszámolt támogatás összege> Ft került felhasználásra. A fennmaradó <a megítélt és a tényleges támogatás különbsége> Ft támogatást a továbbiakban nem kívánom igénybe venni, így arról lemondok. "]
[]
[]
["Hely, dátum"]
[]
[]
[]
[null,"………………………………"]
[null,"Kedvezményezett cégszerű *"]
[null,"aláírása"]
[null,"Ph."]
[]
[]
[]
[]
["* Az aláírók nevét nyomtatott betűkkel is kérjük kitölteni"]

{"sheet":"támogatás típusai","index":13,"n_rows":14,"n_cols":3,"rows_kept":14,"cut":false,"hidden":true,"merged":[[1,1,1,2],[4,2,5,2],[7,2,11,2]]}
[]
["támogatás típus rövídítése","támogatás típusa"]
[]
["K+F/Alap.","Alapkutatás","Kutatás-fejlesztési projekthez nyújtott támogatás "]
["K+F/Alkalm.","Alkalmazott (ipari) kutatás"]
["K+F/Kis.fejl.","Kísérleti fejlesztés"]
["D.M./Közbesz.","Közbeszerzés","De minimis támogatás"]
["D.M./Koord.","Koordinációs költség"]
["D.M./Tájék.","Tájékoztatási költség"]
["D.M./Piac","Piacra jutáshoz kapcsolódó költségek"]
["D.M./Iparjog","Iparjogvédelemmel kapcsolatos költségek"]
["D.M./Rezsi","Általános (rezsi) költségek"]
["Kut.infra.- b.r.","Kutatási infrastruktúrához nyújtott beruházási támogatás","Kutatási infrastruktúrához nyújtott beruházási támogatás"]
["Nem állami támogatás","Nem állami támogatás"]

{"sheet":"Támogatás típusa","index":14,"n_rows":14,"n_cols":3,"rows_kept":14,"cut":false,"hidden":false,"merged":[[1,1,1,2],[3,2,5,2],[6,2,11,2]]}
[]
["támogatás típus rövídítése","támogatás típusa"]
[]
["K+F/Alap.","Alapkutatás","Kutatás-fejlesztési projekthez nyújtott támogatás "]
["K+F/Alkalm.","Alkalmazott (ipari) kutatás"]
["K+F/Kis.fejl.","Kísérleti fejlesztés"]
["D.M./Közbesz.","Közbeszerzés","De minimis támogatás"]
["D.M./Koord.","Koordinációs költség"]
["D.M./Tájék.","Tájékoztatási költség"]
["D.M./Piac","Piacra jutáshoz kapcsolódó költségek"]
["D.M./Iparjog","Iparjogvédelemmel kapcsolatos költségek"]
["D.M./Rezsi","Általános (rezsi) költségek"]
["Kut.infra.- b.r.","Kutatási infrastruktúrához nyújtott beruházási támogatás","Kutatási infrastruktúrához nyújtott beruházási támogatás"]
["Nem állami támogatás","Nem állami támogatás","Nem állami támogatás"]

{"sheet":"Munka1","index":15,"n_rows":0,"n_cols":0,"rows_kept":0,"cut":false,"hidden":false,"merged":[]}